Body,Body name,Date,Transaction number,Amount,Non recoverable VAT included in amount,Supplier name,Supplier ID,Expense area,Fund type,Expense type,Category description
http://statistics.data.gov.uk/search?search=E07000114,Thanet District Council,05/01/2018,445478,648.98,,Adecco Uk Ltd,ADE005,Chief Executive,Revenue,Agency Staff,Human Resources
http://statistics.data.gov.uk/search?search=E07000114,Thanet District Council,05/01/2018,445609,1347.50,,Amenity Horticultural Serv Ltd,AME001,Operational Services,Revenue,"Repairs,  Alter & Mtce - Build",Horticultural
http://statistics.data.gov.uk/search?search=E07000114,Thanet District Council,05/01/2018,445610,1347.50,,Amenity Horticultural Serv Ltd,AME001,Operational Services,Revenue,"Repairs,  Alter & Mtce - Build",Horticultural
http://statistics.data.gov.uk/search?search=E07000114,Thanet District Council,05/01/2018,445611,1155.00,,Amenity Horticultural Serv Ltd,AME001,Operational Services,Revenue,"Repairs,  Alter & Mtce - Build",Horticultural
http://statistics.data.gov.uk/search?search=E07000114,Thanet District Council,05/01/2018,445447,2528.75,,Buckingham Futures Limited,BUC010,Community Services,Revenue,Agency Staff,Human Resources
http://statistics.data.gov.uk/search?search=E07000114,Thanet District Council,05/01/2018,445455,901.25,,Buckingham Futures Limited,BUC010,Community Services,Revenue,Agency Staff,Human Resources
http://statistics.data.gov.uk/search?search=E07000114,Thanet District Council,05/01/2018,445394,1026.81,,Canon (Uk) Ltd,CAN021,Corporate Governance,Revenue,"Equip, Furniture And Materials",Facilities And Mangement Serv
http://statistics.data.gov.uk/search?search=E07000114,Thanet District Council,05/01/2018,445602,339.09,,Canon (Uk) Ltd,CAN021,Community Services,Revenue,"Equip, Furniture And Materials",Facilities And Mangement Serv
http://statistics.data.gov.uk/search?search=E07000114,Thanet District Council,05/01/2018,445782,535.66,,Canon (Uk) Ltd,CAN021,Corporate Governance,Revenue,"Print, Stat And Gen Off Exps",Facilities And Mangement Serv
http://statistics.data.gov.uk/search?search=E07000114,Thanet District Council,05/01/2018,445383,3000.00,,Capita Business Services Ltd,CAP001,Corporate Resources and S151,Revenue,Communications & Computing,Human Resources
http://statistics.data.gov.uk/search?search=E07000114,Thanet District Council,05/01/2018,445384,10728.00,,Capita Business Services Ltd,CAP001,Corporate Resources and S151,Revenue,Communications & Computing,Human Resources
http://statistics.data.gov.uk/search?search=E07000114,Thanet District Council,05/01/2018,445433,3058.80,,Certas Energy Uk Ltd,CER005,Operational Services,Revenue,"Equip, Furniture And Materials",Vehicle Management
http://statistics.data.gov.uk/search?search=E07000114,Thanet District Council,05/01/2018,445679,1696.00,,Cobalt Consulting (Uk) Limited,COB004,Corporate Governance,Revenue,Agency Staff,Human Resources
http://statistics.data.gov.uk/search?search=E07000114,Thanet District Council,05/01/2018,445434,329.18,,Dennis Eagle Ltd,DEN005,Operational Services,Revenue,Direct Transport Costs,Vehicle Management
http://statistics.data.gov.uk/search?search=E07000114,Thanet District Council,05/01/2018,445461,7552.95,,Dover District Council,DOV001,East Kent Shared Services,Revenue,Grants & Subscriptions,Various Cats-Public Sector
http://statistics.data.gov.uk/search?search=E07000114,Thanet District Council,05/01/2018,445462,11204.71,,Dover District Council,DOV001,East Kent Shared Services,Revenue,Grants & Subscriptions,Various Cats-Public Sector
http://statistics.data.gov.uk/search?search=E07000114,Thanet District Council,05/01/2018,446100,1850.00,,Dr Alexander Marshall,MAR100,Operational Services,Revenue,Services,Cemetery And Crematorium
http://statistics.data.gov.uk/search?search=E07000114,Thanet District Council,05/01/2018,445838,265.28,,E.On,EON001,Community Services,Revenue,Energy Costs,Utilities
http://statistics.data.gov.uk/search?search=E07000114,Thanet District Council,05/01/2018,445842,280.23,,E.On,EON001,Community Services,Revenue,Energy Costs,Utilities
http://statistics.data.gov.uk/search?search=E07000114,Thanet District Council,05/01/2018,445665,232.38,,Edmundson Electrical Limited,EDM001,Operational Services,Revenue,"Repairs,  Alter & Mtce - Build",Building Construction Material
http://statistics.data.gov.uk/search?search=E07000114,Thanet District Council,05/01/2018,445464,2800.00,,Emap Publishing Limited,EMA007,Corporate Resources and S151,Revenue,Expenses,Facilities And Mangement Serv
http://statistics.data.gov.uk/search?search=E07000114,Thanet District Council,05/01/2018,445476,368.93,,Evoke Supplies Limited,EVO001,Operational Services,Revenue,"Repairs,  Alter & Mtce - Build",Building Construction Material
http://statistics.data.gov.uk/search?search=E07000114,Thanet District Council,05/01/2018,445477,320.00,,Gerlack & Thorne Ltd,GER001,Operational Services,Revenue,"Equip, Furniture And Materials",Construction-Repair And Maint
http://statistics.data.gov.uk/search?search=E07000114,Thanet District Council,05/01/2018,445381,464.00,,Getmapping Plc,GET005,East Kent Shared Services,Revenue,Communications & Computing,Facilities And Mangement Serv
http://statistics.data.gov.uk/search?search=E07000114,Thanet District Council,05/01/2018,445594,16574.00,,Grant Thornton Uk Llp,GRA048,Corporate Resources and S151,Revenue,Services,Financial Services
http://statistics.data.gov.uk/search?search=E07000114,Thanet District Council,05/01/2018,445396,7662.28,,Hr Go (Kent) Ltd,HRG001,Operational Services,Revenue,Agency Staff,Human Resources
http://statistics.data.gov.uk/search?search=E07000114,Thanet District Council,05/01/2018,445480,960.89,,Hr Go (Kent) Ltd,HRG001,Operational Services,Revenue,Agency Staff,Human Resources
http://statistics.data.gov.uk/search?search=E07000114,Thanet District Council,05/01/2018,445481,365.37,,Hr Go (Kent) Ltd,HRG001,Operational Services,Revenue,Agency Staff,Human Resources
http://statistics.data.gov.uk/search?search=E07000114,Thanet District Council,05/01/2018,445481,449.55,,Hr Go (Kent) Ltd,HRG001,Operational Services,Revenue,Services,Human Resources
http://statistics.data.gov.uk/search?search=E07000114,Thanet District Council,05/01/2018,445482,391.83,,Hr Go (Kent) Ltd,HRG001,Operational Services,Revenue,Agency Staff,Human Resources
http://statistics.data.gov.uk/search?search=E07000114,Thanet District Council,05/01/2018,445483,816.75,,Hr Go (Kent) Ltd,HRG001,Operational Services,Revenue,Agency Staff,Human Resources
http://statistics.data.gov.uk/search?search=E07000114,Thanet District Council,05/01/2018,445484,279.51,,Hr Go (Kent) Ltd,HRG001,Operational Services,Revenue,Agency Staff,Human Resources
http://statistics.data.gov.uk/search?search=E07000114,Thanet District Council,05/01/2018,445359,650.00,,Imperial Civil Enforcement Sols Ltd,IMP008,Operational Services,Revenue,Services,Street And Traffic Management
http://statistics.data.gov.uk/search?search=E07000114,Thanet District Council,05/01/2018,445653,320.00,,J Redpath Buchanan & Co Ltd,RED001,Operational Services,Revenue,"Repairs,  Alter & Mtce - Build",Building Construction Material
http://statistics.data.gov.uk/search?search=E07000114,Thanet District Council,05/01/2018,444829,3671.67,,Kgb Cleaning & Support Services Ltd,KGB001,Operational Services,Revenue,Cleaning & Domestic Supplies,Cleaning And Janitorial
http://statistics.data.gov.uk/search?search=E07000114,Thanet District Council,05/01/2018,445371,11745.00,,Kingdom Security Limited,KIN039,Operational Services,Revenue,Services,Street And Traffic Management
http://statistics.data.gov.uk/search?search=E07000114,Thanet District Council,05/01/2018,445652,481.94,,Local Government Association,LGA001,Community Services,Revenue,Services,Various Categories
http://statistics.data.gov.uk/search?search=E07000114,Thanet District Council,05/01/2018,445488,266.43,,Mears Ltd,MEA003,Community Services,Revenue,"Repairs,  Alter & Mtce - Build",Construction-Repair And Maint
http://statistics.data.gov.uk/search?search=E07000114,Thanet District Council,05/01/2018,445488,4717.17,,Mears Ltd,MEA003,Corporate Governance,Revenue,"Repairs,  Alter & Mtce - Build",Construction-Repair And Maint
http://statistics.data.gov.uk/search?search=E07000114,Thanet District Council,05/01/2018,445488,597.98,,Mears Ltd,MEA003,Operational Services,Revenue,"Repairs,  Alter & Mtce - Build",Construction-Repair And Maint
http://statistics.data.gov.uk/search?search=E07000114,Thanet District Council,05/01/2018,445608,825.00,,Med Clean South Ltd,MED015,Operational Services,Revenue,"Repairs,  Alter & Mtce - Build",Cleaning And Janitorial
http://statistics.data.gov.uk/search?search=E07000114,Thanet District Council,05/01/2018,444949,505.00,,Michelle Williams,WIL064,Community Services,Revenue,Services,Arts And Leisure Services
http://statistics.data.gov.uk/search?search=E07000114,Thanet District Council,05/01/2018,445674,524.29,,Morgan Jones Ltd,MOR001,East Kent Shared Services,Revenue,Agency Staff,Human Resources
http://statistics.data.gov.uk/search?search=E07000114,Thanet District Council,05/01/2018,446086,2027.58,,National Express Ltd,NAT010,Community Services,Revenue,Services,Agency Payments
http://statistics.data.gov.uk/search?search=E07000114,Thanet District Council,05/01/2018,445595,1430.00,,Ncc Services Ltd,NCC003,Corporate Resources and S151,Revenue,Communications & Computing,ICT
http://statistics.data.gov.uk/search?search=E07000114,Thanet District Council,05/01/2018,445596,630.00,,Ncc Services Ltd,NCC003,Corporate Resources and S151,Revenue,Communications & Computing,ICT
http://statistics.data.gov.uk/search?search=E07000114,Thanet District Council,05/01/2018,445764,308.39,,Npower Limited,NPO001,Corporate Governance,Revenue,Energy Costs,Utilities
http://statistics.data.gov.uk/search?search=E07000114,Thanet District Council,05/01/2018,445372,261.12,,Nylon Fasteners Limited,NYL001,Operational Services,Revenue,"Equip, Furniture And Materials",Street And Traffic Management
http://statistics.data.gov.uk/search?search=E07000114,Thanet District Council,05/01/2018,445448,2358.26,,Ohuk Limited,OHU001,Operational Services,Revenue,Agency Staff,Human Resources
http://statistics.data.gov.uk/search?search=E07000114,Thanet District Council,05/01/2018,445366,773.60,,Probrand Ltd,PRO012,East Kent Shared Services,Revenue,Communications & Computing,ICT
http://statistics.data.gov.uk/search?search=E07000114,Thanet District Council,05/01/2018,445643,280.00,,R Cannon,CAN007,Operational Services,Revenue,Services,Maritime Services
http://statistics.data.gov.uk/search?search=E07000114,Thanet District Council,05/01/2018,443782,2036.11,,Richard Jackson Ltd,RIC030,Operational Services,Revenue,Services,Consultancy
http://statistics.data.gov.uk/search?search=E07000114,Thanet District Council,05/01/2018,445243,840.67,,Sicuro Uk Ltd,SIC001,Corporate Resources and S151,Balance Sheet,Council Dwellings,Facilities And Mangement Serv
http://statistics.data.gov.uk/search?search=E07000114,Thanet District Council,05/01/2018,445365,3597.34,,Southampton Marine Services Limited,SOU033,Operational Services,Revenue,"Repairs,  Alter & Mtce - Build",Maritime Services
http://statistics.data.gov.uk/search?search=E07000114,Thanet District Council,05/01/2018,445880,1808.17,,Southern Electric,SEL007,Community Services,Revenue,Energy Costs,Utilities
http://statistics.data.gov.uk/search?search=E07000114,Thanet District Council,05/01/2018,445375,642.70,,Spaldings  Ltd,SPA006,Operational Services,Revenue,"Equip, Furniture And Materials",Horticultural
http://statistics.data.gov.uk/search?search=E07000114,Thanet District Council,05/01/2018,445659,689.00,,Stagecoach Services Limited,STA023,Corporate Resources and S151,Balance Sheet,Staff Bus Permits Holding A/C,Public Transport
http://statistics.data.gov.uk/search?search=E07000114,Thanet District Council,05/01/2018,445469,687.78,,Teleshore (Uk) Ltd,TEL003,Operational Services,Revenue,"Repairs,  Alter & Mtce - Build",Cemetery And Crematorium
http://statistics.data.gov.uk/search?search=E07000114,Thanet District Council,05/01/2018,445603,1050.00,,Thanet Nursery Project Limited,TNU001,Corporate Governance,Revenue,Rents,Facilities And Mangement Serv
http://statistics.data.gov.uk/search?search=E07000114,Thanet District Council,05/01/2018,445474,2500.00,,The Duncan & Graham Partnership Ltd,DUN015,Corporate Resources and S151,Balance Sheet,Council Dwellings,Consultancy
http://statistics.data.gov.uk/search?search=E07000114,Thanet District Council,05/01/2018,445443,712.50,,The Natural Solution Cleaning Co Ltd,NAT030,Operational Services,Revenue,"Repairs,  Alter & Mtce - Build",Cleaning And Janitorial
http://statistics.data.gov.uk/search?search=E07000114,Thanet District Council,05/01/2018,445489,600.00,,University Of Southampton,UNI040,Operational Services,Revenue,Training,Human Resources
http://statistics.data.gov.uk/search?search=E07000114,Thanet District Council,05/01/2018,445379,675.00,,W Brazil & Bros,BRA001,Operational Services,Revenue,Grounds Mtce Costs,Environmental Services
http://statistics.data.gov.uk/search?search=E07000114,Thanet District Council,09/01/2018,445639,3000.00,,Accordio Limited,ACC010,East Kent Shared Services,Revenue,Services,Consultancy
http://statistics.data.gov.uk/search?search=E07000114,Thanet District Council,09/01/2018,445648,500.00,,Albion Fencing&Construction Kent Ltd,ALB005,Operational Services,Revenue,"Equip, Furniture And Materials",Building Construction Material
http://statistics.data.gov.uk/search?search=E07000114,Thanet District Council,09/01/2018,445832,1459.00,,Ashford Borough Council,ASH001,Corporate Resources and S151,Revenue,Services,Various Cats-Public Sector
http://statistics.data.gov.uk/search?search=E07000114,Thanet District Council,09/01/2018,440812,16653.40,,Burgess Marine Ltd In Administration,BUR017,Operational Services,Revenue,"Repairs,  Alter & Mtce - Build",Maritime Services
http://statistics.data.gov.uk/search?search=E07000114,Thanet District Council,09/01/2018,442448,16653.40,,Burgess Marine Ltd In Administration,BUR017,Operational Services,Revenue,"Repairs,  Alter & Mtce - Build",Maritime Services
http://statistics.data.gov.uk/search?search=E07000114,Thanet District Council,09/01/2018,444019,-8326.70,,Burgess Marine Ltd In Administration,BUR017,Operational Services,Revenue,"Repairs,  Alter & Mtce - Build",Maritime Services
http://statistics.data.gov.uk/search?search=E07000114,Thanet District Council,09/01/2018,444021,-8326.70,,Burgess Marine Ltd In Administration,BUR017,Operational Services,Revenue,"Repairs,  Alter & Mtce - Build",Maritime Services
http://statistics.data.gov.uk/search?search=E07000114,Thanet District Council,09/01/2018,446052,950.00,,Capita It Services Limited,CAP017,East Kent Shared Services,Revenue,Communications & Computing,ICT
http://statistics.data.gov.uk/search?search=E07000114,Thanet District Council,09/01/2018,445637,1899.75,,Certas Energy Uk Ltd,CER005,Operational Services,Revenue,"Equip, Furniture And Materials",Vehicle Management
http://statistics.data.gov.uk/search?search=E07000114,Thanet District Council,09/01/2018,445649,2000.00,,Chapel Print Limited,CHA069,Operational Services,Revenue,Miscellaneous Expenses,Stationery
http://statistics.data.gov.uk/search?search=E07000114,Thanet District Council,09/01/2018,445785,382.46,,Dennis Eagle Limited,TER011,Operational Services,Revenue,Direct Transport Costs,Vehicle Management
http://statistics.data.gov.uk/search?search=E07000114,Thanet District Council,09/01/2018,445793,987.62,,Dennis Eagle Limited,TER011,Operational Services,Revenue,Direct Transport Costs,Vehicle Management
http://statistics.data.gov.uk/search?search=E07000114,Thanet District Council,09/01/2018,446314,4700.00,,Dolphin Lifts Kent,DOL003,Corporate Resources and S151,Balance Sheet,Capital Exp-Non Council Assets,Grants
http://statistics.data.gov.uk/search?search=E07000114,Thanet District Council,09/01/2018,445801,1235.00,,Egbert H Taylor & Company Ltd,TAY005,Operational Services,Revenue,"Equip, Furniture And Materials",Environmental Services
http://statistics.data.gov.uk/search?search=E07000114,Thanet District Council,09/01/2018,445624,842.34,,Elec-Sec Ltd,ELE014,Operational Services,Revenue,"Repairs,  Alter & Mtce - Build",Building Construction Material
http://statistics.data.gov.uk/search?search=E07000114,Thanet District Council,09/01/2018,445903,623.12,,Electoral Reform Services,ELE010,Corporate Governance,Revenue,"Print, Stat And Gen Off Exps",Facilities And Mangement Serv
http://statistics.data.gov.uk/search?search=E07000114,Thanet District Council,09/01/2018,445667,606.70,,Electrical Lighting Solutions Ltd,ELE013,Operational Services,Revenue,"Repairs,  Alter & Mtce - Build",Building Construction Material
http://statistics.data.gov.uk/search?search=E07000114,Thanet District Council,09/01/2018,446312,806.23,,Evermech Services Ltd,EVE011,Corporate Resources and S151,Balance Sheet,Capital Exp-Non Council Assets,Grants
http://statistics.data.gov.uk/search?search=E07000114,Thanet District Council,09/01/2018,446303,967.46,,Family Mosaic Housing,FAM001,Corporate Resources and S151,Balance Sheet,Capital Exp-Non Council Assets,Housing Management
http://statistics.data.gov.uk/search?search=E07000114,Thanet District Council,09/01/2018,446304,816.08,,Family Mosaic Housing,FAM001,Corporate Resources and S151,Balance Sheet,Capital Exp-Non Council Assets,Housing Management
http://statistics.data.gov.uk/search?search=E07000114,Thanet District Council,09/01/2018,446305,1573.82,,Family Mosaic Housing,FAM001,Corporate Resources and S151,Balance Sheet,Capital Exp-Non Council Assets,Housing Management
http://statistics.data.gov.uk/search?search=E07000114,Thanet District Council,09/01/2018,446306,985.29,,Family Mosaic Housing,FAM001,Corporate Resources and S151,Balance Sheet,Capital Exp-Non Council Assets,Housing Management
http://statistics.data.gov.uk/search?search=E07000114,Thanet District Council,09/01/2018,446308,419.06,,Family Mosaic Housing,FAM001,Corporate Resources and S151,Balance Sheet,Capital Exp-Non Council Assets,Housing Management
http://statistics.data.gov.uk/search?search=E07000114,Thanet District Council,09/01/2018,446309,396.47,,Family Mosaic Housing,FAM001,Corporate Resources and S151,Balance Sheet,Capital Exp-Non Council Assets,Housing Management
http://statistics.data.gov.uk/search?search=E07000114,Thanet District Council,09/01/2018,445669,605.33,,Farrer Barnes Limited,FAR012,Corporate Resources and S151,Revenue,Agency Staff,Human Resources
http://statistics.data.gov.uk/search?search=E07000114,Thanet District Council,09/01/2018,445670,674.19,,Farrer Barnes Limited,FAR012,Corporate Resources and S151,Revenue,Agency Staff,Human Resources
http://statistics.data.gov.uk/search?search=E07000114,Thanet District Council,09/01/2018,445681,643.69,,Farrer Barnes Limited,FAR012,Corporate Resources and S151,Revenue,Agency Staff,Human Resources
http://statistics.data.gov.uk/search?search=E07000114,Thanet District Council,09/01/2018,445705,694.49,,Farrer Barnes Limited,FAR012,Corporate Resources and S151,Revenue,Agency Staff,Human Resources
http://statistics.data.gov.uk/search?search=E07000114,Thanet District Council,09/01/2018,443344,490.00,,Freight Transport Association,FRE007,Operational Services,Revenue,Training,Human Resources
http://statistics.data.gov.uk/search?search=E07000114,Thanet District Council,09/01/2018,446322,70.00,,Freight Transport Association,FRE007,Operational Services,Revenue,Training,Human Resources
http://statistics.data.gov.uk/search?search=E07000114,Thanet District Council,09/01/2018,445809,244.36,,Hr Go (Kent) Ltd,HRG001,Operational Services,Revenue,Agency Staff,Human Resources
http://statistics.data.gov.uk/search?search=E07000114,Thanet District Council,09/01/2018,446302,1310.70,,John Gale,GAL001,Corporate Resources and S151,Balance Sheet,Capital Exp-Non Council Assets,Grants
http://statistics.data.gov.uk/search?search=E07000114,Thanet District Council,09/01/2018,446307,398.00,,John Gale,GAL001,Corporate Resources and S151,Balance Sheet,Capital Exp-Non Council Assets,Grants
http://statistics.data.gov.uk/search?search=E07000114,Thanet District Council,09/01/2018,445422,7873.86,,Kent County Council (Kcs),KCC003,Corporate Governance,Revenue,Energy Costs,Facilities And Mangement Serv
http://statistics.data.gov.uk/search?search=E07000114,Thanet District Council,09/01/2018,445423,7834.19,,Kent County Council (Kcs),KCC003,Operational Services,Revenue,Energy Costs,Facilities And Mangement Serv
http://statistics.data.gov.uk/search?search=E07000114,Thanet District Council,09/01/2018,445425,4934.94,,Kent County Council (Kcs),KCC003,Operational Services,Revenue,Energy Costs,Facilities And Mangement Serv
http://statistics.data.gov.uk/search?search=E07000114,Thanet District Council,09/01/2018,445426,917.96,,Kent County Council (Kcs),KCC003,Operational Services,Revenue,Energy Costs,Facilities And Mangement Serv
http://statistics.data.gov.uk/search?search=E07000114,Thanet District Council,09/01/2018,445427,1235.27,,Kent County Council (Kcs),KCC003,Operational Services,Revenue,Energy Costs,Facilities And Mangement Serv
http://statistics.data.gov.uk/search?search=E07000114,Thanet District Council,09/01/2018,445430,1715.01,,Kent County Council (Kcs),KCC003,Operational Services,Revenue,Energy Costs,Facilities And Mangement Serv
http://statistics.data.gov.uk/search?search=E07000114,Thanet District Council,09/01/2018,445431,1046.62,,Kent County Council (Kcs),KCC003,Operational Services,Revenue,Energy Costs,Facilities And Mangement Serv
http://statistics.data.gov.uk/search?search=E07000114,Thanet District Council,09/01/2018,445432,11263.42,,Kent County Council (Kcs),KCC003,Corporate Governance,Revenue,Energy Costs,Facilities And Mangement Serv
http://statistics.data.gov.uk/search?search=E07000114,Thanet District Council,09/01/2018,445631,2027.30,,Kent County Council (Kcs),KCC003,Operational Services,Revenue,Energy Costs,Facilities And Mangement Serv
http://statistics.data.gov.uk/search?search=E07000114,Thanet District Council,09/01/2018,445632,1652.83,,Kent County Council (Kcs),KCC003,Corporate Governance,Revenue,Energy Costs,Facilities And Mangement Serv
http://statistics.data.gov.uk/search?search=E07000114,Thanet District Council,09/01/2018,445647,1056.73,,Kent County Council (Kcs),KCC003,Corporate Governance,Revenue,Energy Costs,Facilities And Mangement Serv
http://statistics.data.gov.uk/search?search=E07000114,Thanet District Council,09/01/2018,445962,-569.33,,Kent County Council (Kcs),KCC003,Operational Services,Revenue,Energy Costs,Facilities And Mangement Serv
http://statistics.data.gov.uk/search?search=E07000114,Thanet District Council,09/01/2018,446005,-415.12,,Kent County Council (Kcs),KCC003,Operational Services,Revenue,Energy Costs,Facilities And Mangement Serv
http://statistics.data.gov.uk/search?search=E07000114,Thanet District Council,09/01/2018,446007,-921.03,,Kent County Council (Kcs),KCC003,Operational Services,Revenue,Energy Costs,Facilities And Mangement Serv
http://statistics.data.gov.uk/search?search=E07000114,Thanet District Council,09/01/2018,446009,-931.41,,Kent County Council (Kcs),KCC003,Corporate Governance,Revenue,Energy Costs,Facilities And Mangement Serv
http://statistics.data.gov.uk/search?search=E07000114,Thanet District Council,09/01/2018,446012,-236.88,,Kent County Council (Kcs),KCC003,Operational Services,Revenue,Energy Costs,Facilities And Mangement Serv
http://statistics.data.gov.uk/search?search=E07000114,Thanet District Council,09/01/2018,446016,-1686.27,,Kent County Council (Kcs),KCC003,Corporate Governance,Revenue,Energy Costs,Facilities And Mangement Serv
http://statistics.data.gov.uk/search?search=E07000114,Thanet District Council,09/01/2018,445244,307.50,,Lexisnexis Uk,LEX002,Community Services,Revenue,"Print, Stat And Gen Off Exps",Human Resources
http://statistics.data.gov.uk/search?search=E07000114,Thanet District Council,09/01/2018,445244,307.50,,Lexisnexis Uk,LEX002,Corporate Governance,Revenue,"Print, Stat And Gen Off Exps",Human Resources
http://statistics.data.gov.uk/search?search=E07000114,Thanet District Council,09/01/2018,445654,1945.16,,Mears Ltd,MEA003,Operational Services,Revenue,"Repairs,  Alter & Mtce - Build",Construction-Repair And Maint
http://statistics.data.gov.uk/search?search=E07000114,Thanet District Council,09/01/2018,445657,271.14,,Mears Ltd,MEA003,Operational Services,Revenue,"Repairs,  Alter & Mtce - Build",Construction-Repair And Maint
http://statistics.data.gov.uk/search?search=E07000114,Thanet District Council,09/01/2018,445641,1050.00,,Michael Page Int Recruitment Ltd,PAG008,East Kent Shared Services,Revenue,Agency Staff,Human Resources
http://statistics.data.gov.uk/search?search=E07000114,Thanet District Council,09/01/2018,446097,69.16,,Mr Darren Osborne,OSB008,Community Services,Revenue,Cleaning & Domestic Supplies,Cleaning And Janitorial
http://statistics.data.gov.uk/search?search=E07000114,Thanet District Council,09/01/2018,446097,398.34,,Mr Darren Osborne,OSB008,Corporate Governance,Revenue,Cleaning & Domestic Supplies,Cleaning And Janitorial
http://statistics.data.gov.uk/search?search=E07000114,Thanet District Council,09/01/2018,446097,40.00,,Mr Darren Osborne,OSB008,Operational Services,Revenue,Cleaning & Domestic Supplies,Cleaning And Janitorial
http://statistics.data.gov.uk/search?search=E07000114,Thanet District Council,09/01/2018,446083,272.00,,Orbital Net Ltd,ORB008,Corporate Resources and S151,Revenue,Communications & Computing,ICT
http://statistics.data.gov.uk/search?search=E07000114,Thanet District Council,09/01/2018,446319,18938.11,,REDACTED PERSONAL DATA,N/A,Corporate Resources and S151,Balance Sheet,Capital Exp-Non Council Assets,Non Trade Payee
http://statistics.data.gov.uk/search?search=E07000114,Thanet District Council,09/01/2018,446320,30942.21,,REDACTED PERSONAL DATA,N/A,Corporate Resources and S151,Balance Sheet,Capital Exp-Non Council Assets,Non Trade Payee
http://statistics.data.gov.uk/search?search=E07000114,Thanet District Council,09/01/2018,446310,1000.00,,S U Minnis Bay Holiday Club,SUM006,Community Services,Revenue,Grants & Subscriptions,Grants
http://statistics.data.gov.uk/search?search=E07000114,Thanet District Council,09/01/2018,445393,1915.94,,Scottish Water Business Stream Ltd,SCO019,Operational Services,Revenue,Water Services,Utilities
http://statistics.data.gov.uk/search?search=E07000114,Thanet District Council,09/01/2018,445395,933.16,,Scottish Water Business Stream Ltd,SCO019,Operational Services,Revenue,Water Services,Utilities
http://statistics.data.gov.uk/search?search=E07000114,Thanet District Council,09/01/2018,445397,365.72,,Scottish Water Business Stream Ltd,SCO019,Operational Services,Revenue,Water Services,Utilities
http://statistics.data.gov.uk/search?search=E07000114,Thanet District Council,09/01/2018,445762,2235.72,,Scottish Water Business Stream Ltd,SCO019,Operational Services,Revenue,Water Services,Utilities
http://statistics.data.gov.uk/search?search=E07000114,Thanet District Council,09/01/2018,445873,2191.73,,Scottish Water Business Stream Ltd,SCO019,Operational Services,Revenue,Water Services,Utilities
http://statistics.data.gov.uk/search?search=E07000114,Thanet District Council,09/01/2018,445946,1395.67,,Scottish Water Business Stream Ltd,SCO019,Operational Services,Revenue,Water Services,Utilities
http://statistics.data.gov.uk/search?search=E07000114,Thanet District Council,09/01/2018,445862,3098.48,,Securitas Security Services (Uk) Ltd,SEC019,Corporate Governance,Revenue,Services,Facilities And Mangement Serv
http://statistics.data.gov.uk/search?search=E07000114,Thanet District Council,09/01/2018,445363,1917.00,,Sellick Partnership Ltd,SEL011,Corporate Governance,Revenue,Services,Human Resources
http://statistics.data.gov.uk/search?search=E07000114,Thanet District Council,09/01/2018,445905,1278.00,,Sellick Partnership Ltd,SEL011,Corporate Governance,Revenue,Services,Human Resources
http://statistics.data.gov.uk/search?search=E07000114,Thanet District Council,09/01/2018,446313,6800.71,,South East Adaptations Limited,SOU026,Corporate Resources and S151,Balance Sheet,Capital Exp-Non Council Assets,Grants
http://statistics.data.gov.uk/search?search=E07000114,Thanet District Council,09/01/2018,446315,6940.33,,South East Building Company Limited,SEB001,Corporate Resources and S151,Balance Sheet,Capital Exp-Non Council Assets,Grants
http://statistics.data.gov.uk/search?search=E07000114,Thanet District Council,09/01/2018,446316,3980.00,,South East Building Company Limited,SEB001,Corporate Resources and S151,Balance Sheet,Capital Exp-Non Council Assets,Grants
http://statistics.data.gov.uk/search?search=E07000114,Thanet District Council,09/01/2018,446318,15267.00,,South East Building Company Limited,SEB001,Corporate Resources and S151,Balance Sheet,Capital Exp-Non Council Assets,Grants
http://statistics.data.gov.uk/search?search=E07000114,Thanet District Council,09/01/2018,443726,2028.23,,Southern Electric,SEL007,Operational Services,Revenue,Energy Costs,Utilities
http://statistics.data.gov.uk/search?search=E07000114,Thanet District Council,09/01/2018,444243,312.15,,Southern Electric,SEL007,Operational Services,Revenue,Energy Costs,Utilities
http://statistics.data.gov.uk/search?search=E07000114,Thanet District Council,09/01/2018,444441,2016.34,,Southern Electric,SEL007,Operational Services,Revenue,Energy Costs,Utilities
http://statistics.data.gov.uk/search?search=E07000114,Thanet District Council,09/01/2018,444669,2989.55,,Southern Electric,SEL007,Operational Services,Revenue,Energy Costs,Utilities
http://statistics.data.gov.uk/search?search=E07000114,Thanet District Council,09/01/2018,445416,1293.44,,Southern Electric,SEL007,Community Services,Revenue,Energy Costs,Utilities
http://statistics.data.gov.uk/search?search=E07000114,Thanet District Council,09/01/2018,445420,6280.42,,Southern Electric,SEL007,Community Services,Revenue,Energy Costs,Utilities
http://statistics.data.gov.uk/search?search=E07000114,Thanet District Council,09/01/2018,445759,252.46,,Southern Electric,SEL007,Community Services,Revenue,Energy Costs,Utilities
http://statistics.data.gov.uk/search?search=E07000114,Thanet District Council,09/01/2018,445901,400.28,,Southern Electric,SEL007,Operational Services,Revenue,Energy Costs,Utilities
http://statistics.data.gov.uk/search?search=E07000114,Thanet District Council,09/01/2018,445902,-312.15,,Southern Electric,SEL007,Operational Services,Revenue,Energy Costs,Utilities
http://statistics.data.gov.uk/search?search=E07000114,Thanet District Council,09/01/2018,445911,-2016.34,,Southern Electric,SEL007,Operational Services,Revenue,Energy Costs,Utilities
http://statistics.data.gov.uk/search?search=E07000114,Thanet District Council,09/01/2018,445930,-2028.23,,Southern Electric,SEL007,Operational Services,Revenue,Energy Costs,Utilities
http://statistics.data.gov.uk/search?search=E07000114,Thanet District Council,09/01/2018,445939,-2989.55,,Southern Electric,SEL007,Operational Services,Revenue,Energy Costs,Utilities
http://statistics.data.gov.uk/search?search=E07000114,Thanet District Council,09/01/2018,445949,266.24,,Southern Electric,SEL007,Operational Services,Revenue,Energy Costs,Utilities
http://statistics.data.gov.uk/search?search=E07000114,Thanet District Council,09/01/2018,445954,691.47,,Southern Electric,SEL007,Corporate Governance,Revenue,Energy Costs,Utilities
http://statistics.data.gov.uk/search?search=E07000114,Thanet District Council,09/01/2018,445955,983.84,,Southern Electric,SEL007,Operational Services,Revenue,Energy Costs,Utilities
http://statistics.data.gov.uk/search?search=E07000114,Thanet District Council,09/01/2018,445956,4694.51,,Southern Electric,SEL007,Operational Services,Revenue,Energy Costs,Utilities
http://statistics.data.gov.uk/search?search=E07000114,Thanet District Council,09/01/2018,446030,243.07,,Southern Electric,SEL007,Community Services,Revenue,Energy Costs,Utilities
http://statistics.data.gov.uk/search?search=E07000114,Thanet District Council,09/01/2018,445973,262.50,,Standfast Burglar Alarm Co (Ek) Ltd,STA003,Corporate Governance,Revenue,"Repairs,  Alter & Mtce - Build",Facilities And Mangement Serv
http://statistics.data.gov.uk/search?search=E07000114,Thanet District Council,09/01/2018,446299,400.00,,Thanet Volunteer Bureau Limited,THA037,Community Services,Revenue,Grants & Subscriptions,Human Resources
http://statistics.data.gov.uk/search?search=E07000114,Thanet District Council,09/01/2018,445400,4054.17,,The Glenwood Hotel,GLE007,Community Services,Revenue,Services,Housing Management
http://statistics.data.gov.uk/search?search=E07000114,Thanet District Council,09/01/2018,445401,2904.17,,The Glenwood Hotel,GLE007,Community Services,Revenue,Services,Housing Management
http://statistics.data.gov.uk/search?search=E07000114,Thanet District Council,09/01/2018,445403,3733.35,,The Glenwood Hotel,GLE007,Community Services,Revenue,Services,Housing Management
http://statistics.data.gov.uk/search?search=E07000114,Thanet District Council,09/01/2018,445404,2783.35,,The Glenwood Hotel,GLE007,Community Services,Revenue,Services,Housing Management
http://statistics.data.gov.uk/search?search=E07000114,Thanet District Council,09/01/2018,445776,3783.33,,The Glenwood Hotel,GLE007,Community Services,Revenue,Services,Housing Management
http://statistics.data.gov.uk/search?search=E07000114,Thanet District Council,09/01/2018,445778,3091.68,,The Glenwood Hotel,GLE007,Community Services,Revenue,Services,Housing Management
http://statistics.data.gov.uk/search?search=E07000114,Thanet District Council,09/01/2018,445781,3675.01,,The Glenwood Hotel,GLE007,Community Services,Revenue,Services,Housing Management
http://statistics.data.gov.uk/search?search=E07000114,Thanet District Council,09/01/2018,445783,2041.68,,The Glenwood Hotel,GLE007,Community Services,Revenue,Services,Housing Management
http://statistics.data.gov.uk/search?search=E07000114,Thanet District Council,09/01/2018,445367,1325.00,,The Margate Society Cic,MAR108,Corporate Governance,Revenue,Services,Arts And Leisure Services
http://statistics.data.gov.uk/search?search=E07000114,Thanet District Council,09/01/2018,446311,14017.00,,Trueden Disability Adaptations Ltd,TRU012,Corporate Resources and S151,Balance Sheet,Capital Exp-Non Council Assets,Grants
http://statistics.data.gov.uk/search?search=E07000114,Thanet District Council,09/01/2018,446317,7073.03,,Trueden Disability Adaptations Ltd,TRU012,Corporate Resources and S151,Balance Sheet,Capital Exp-Non Council Assets,Grants
http://statistics.data.gov.uk/search?search=E07000114,Thanet District Council,10/01/2018,445918,865.20,,Casement Signs And Traffic,CAS001,Operational Services,Revenue,"Repairs,  Alter & Mtce - Build",Street And Traffic Management
http://statistics.data.gov.uk/search?search=E07000114,Thanet District Council,10/01/2018,446061,239.61,,Castle Automotive & Eng Supp Ltd,CAS024,Operational Services,Revenue,"Equip, Furniture And Materials",Vehicle Management
http://statistics.data.gov.uk/search?search=E07000114,Thanet District Council,10/01/2018,445467,1657.00,,Centre For Public Scrutiny Ltd,CEN015,Corporate Resources and S151,Revenue,Training,Human Resources
http://statistics.data.gov.uk/search?search=E07000114,Thanet District Council,10/01/2018,446013,1950.20,,Certas Energy Uk Ltd,CER005,Operational Services,Revenue,"Equip, Furniture And Materials",Vehicle Management
http://statistics.data.gov.uk/search?search=E07000114,Thanet District Council,10/01/2018,445990,288.75,,Channel Commercials Plc,CCO001,Operational Services,Revenue,Direct Transport Costs,Vehicle Management
http://statistics.data.gov.uk/search?search=E07000114,Thanet District Council,10/01/2018,446206,3090.00,,Chapel Print Limited,CHA069,Community Services,Revenue,"Print, Stat And Gen Off Exps",Stationery
http://statistics.data.gov.uk/search?search=E07000114,Thanet District Council,10/01/2018,445931,960.00,,Cipfa Business Ltd,CIP008,Corporate Resources and S151,Revenue,"Print, Stat And Gen Off Exps",Financial Services
http://statistics.data.gov.uk/search?search=E07000114,Thanet District Council,10/01/2018,445855,295.84,,Dennis Eagle Ltd,DEN005,Operational Services,Revenue,Direct Transport Costs,Vehicle Management
http://statistics.data.gov.uk/search?search=E07000114,Thanet District Council,10/01/2018,445856,213.20,,Dennis Eagle Ltd,DEN005,Operational Services,Revenue,Direct Transport Costs,Vehicle Management
http://statistics.data.gov.uk/search?search=E07000114,Thanet District Council,10/01/2018,445857,499.48,,Dennis Eagle Ltd,DEN005,Operational Services,Revenue,Direct Transport Costs,Vehicle Management
http://statistics.data.gov.uk/search?search=E07000114,Thanet District Council,10/01/2018,445896,820.00,,Diana M Stark,STA052,Community Services,Revenue,Services,Environmental Services
http://statistics.data.gov.uk/search?search=E07000114,Thanet District Council,10/01/2018,445626,21985.38,,East Kent Housing Ltd,EKH002,Community Services,Revenue,Services,Housing Management
http://statistics.data.gov.uk/search?search=E07000114,Thanet District Council,10/01/2018,446283,694.49,,Farrer Barnes Limited,FAR012,Corporate Resources and S151,Revenue,Agency Staff,Human Resources
http://statistics.data.gov.uk/search?search=E07000114,Thanet District Council,10/01/2018,446284,643.69,,Farrer Barnes Limited,FAR012,Corporate Resources and S151,Revenue,Agency Staff,Human Resources
http://statistics.data.gov.uk/search?search=E07000114,Thanet District Council,10/01/2018,445650,6348.84,,G & W Gardner Building Cont Ltd,GAR001,Corporate Resources and S151,Balance Sheet,Other Land And Buildings-Hra,Construction-Repair And Maint
http://statistics.data.gov.uk/search?search=E07000114,Thanet District Council,10/01/2018,445888,34883.00,,Grant Thornton Uk Llp,GRA048,Corporate Resources and S151,Revenue,Services,Financial Services
http://statistics.data.gov.uk/search?search=E07000114,Thanet District Council,10/01/2018,445835,880.00,,Hickleys Limited,HIC003,Operational Services,Revenue,Communications & Computing,ICT
http://statistics.data.gov.uk/search?search=E07000114,Thanet District Council,10/01/2018,445834,7828.53,,Hr Go (Kent) Ltd,HRG001,Operational Services,Revenue,Agency Staff,Human Resources
http://statistics.data.gov.uk/search?search=E07000114,Thanet District Council,10/01/2018,445875,5880.07,,Hr Go (Kent) Ltd,HRG001,Operational Services,Revenue,Agency Staff,Human Resources
http://statistics.data.gov.uk/search?search=E07000114,Thanet District Council,10/01/2018,445889,879.61,,Hr Go (Kent) Ltd,HRG001,Operational Services,Revenue,Agency Staff,Human Resources
http://statistics.data.gov.uk/search?search=E07000114,Thanet District Council,10/01/2018,445891,3786.12,,Hr Go (Kent) Ltd,HRG001,Operational Services,Revenue,Agency Staff,Human Resources
http://statistics.data.gov.uk/search?search=E07000114,Thanet District Council,10/01/2018,446023,865.62,,Hr Go (Kent) Ltd,HRG001,Operational Services,Revenue,Agency Staff,Human Resources
http://statistics.data.gov.uk/search?search=E07000114,Thanet District Council,10/01/2018,446025,825.68,,Hr Go (Kent) Ltd,HRG001,Operational Services,Revenue,Agency Staff,Human Resources
http://statistics.data.gov.uk/search?search=E07000114,Thanet District Council,10/01/2018,446026,522.44,,Hr Go (Kent) Ltd,HRG001,Operational Services,Revenue,Agency Staff,Human Resources
http://statistics.data.gov.uk/search?search=E07000114,Thanet District Council,10/01/2018,446035,785.14,,Hr Go (Kent) Ltd,HRG001,Operational Services,Revenue,Agency Staff,Human Resources
http://statistics.data.gov.uk/search?search=E07000114,Thanet District Council,10/01/2018,446071,520.68,,Hr Go (Kent) Ltd,HRG001,Operational Services,Revenue,Agency Staff,Human Resources
http://statistics.data.gov.uk/search?search=E07000114,Thanet District Council,10/01/2018,446072,622.55,,Hr Go (Kent) Ltd,HRG001,Operational Services,Revenue,Agency Staff,Human Resources
http://statistics.data.gov.uk/search?search=E07000114,Thanet District Council,10/01/2018,446075,963.37,,Hr Go (Kent) Ltd,HRG001,Operational Services,Revenue,Agency Staff,Human Resources
http://statistics.data.gov.uk/search?search=E07000114,Thanet District Council,10/01/2018,445625,532.00,,J C White Geomatics Ltd,WHI019,Operational Services,Revenue,Services,Consultancy
http://statistics.data.gov.uk/search?search=E07000114,Thanet District Council,10/01/2018,446044,3990.00,,Kent County Council,KCC002,Community Services,Revenue,Services,Various Cats-Public Sector
http://statistics.data.gov.uk/search?search=E07000114,Thanet District Council,10/01/2018,445934,604.95,,Loomis Uk Ltd,LOO002,Operational Services,Revenue,Services,Financial Services
http://statistics.data.gov.uk/search?search=E07000114,Thanet District Council,10/01/2018,445605,5750.00,,Luv Corp Ltd,LUV001,Corporate Resources and S151,Revenue,Services,ICT
http://statistics.data.gov.uk/search?search=E07000114,Thanet District Council,10/01/2018,445449,348.56,,Lyreco Uk Limited,LYR001,East Kent Shared Services,Revenue,Communications & Computing,Stationery
http://statistics.data.gov.uk/search?search=E07000114,Thanet District Council,10/01/2018,445449,25.76,,Lyreco Uk Limited,LYR001,East Kent Shared Services,Revenue,"Print, Stat And Gen Off Exps",Stationery
http://statistics.data.gov.uk/search?search=E07000114,Thanet District Council,10/01/2018,445909,219.60,,Main Man Supplies Ltd,MAI001,Operational Services,Revenue,"Clothes, Uniforms & Laundry",Clothing
http://statistics.data.gov.uk/search?search=E07000114,Thanet District Council,10/01/2018,446219,1449.75,,Med Clean South Ltd,MED015,Operational Services,Revenue,"Repairs,  Alter & Mtce - Build",Cleaning And Janitorial
http://statistics.data.gov.uk/search?search=E07000114,Thanet District Council,10/01/2018,446051,225.00,,Mike Beer Transport Ltd,BEE006,Operational Services,Revenue,Direct Transport Costs,Vehicle Management
http://statistics.data.gov.uk/search?search=E07000114,Thanet District Council,10/01/2018,445925,2077.98,,Ohuk Limited,OHU001,Operational Services,Revenue,Agency Staff,Human Resources
http://statistics.data.gov.uk/search?search=E07000114,Thanet District Council,10/01/2018,446067,2116.65,,Ohuk Limited,OHU001,Operational Services,Revenue,Agency Staff,Human Resources
http://statistics.data.gov.uk/search?search=E07000114,Thanet District Council,10/01/2018,445942,1513.95,,Parkeon Limited,PAR063,Operational Services,Revenue,"Equip, Furniture And Materials",Street And Traffic Management
http://statistics.data.gov.uk/search?search=E07000114,Thanet District Council,10/01/2018,445976,24021.26,,Profile Security Services Limited,PRO018,Operational Services,Revenue,Services,Facilities And Mangement Serv
http://statistics.data.gov.uk/search?search=E07000114,Thanet District Council,10/01/2018,445977,900.98,,Profile Security Services Limited,PRO018,Operational Services,Revenue,Services,Facilities And Mangement Serv
http://statistics.data.gov.uk/search?search=E07000114,Thanet District Council,10/01/2018,445910,647.50,,R S S (Wessex) Limited,RSS002,Operational Services,Revenue,Agency Staff,Human Resources
http://statistics.data.gov.uk/search?search=E07000114,Thanet District Council,10/01/2018,445916,525.00,,R S S (Wessex) Limited,RSS002,Operational Services,Revenue,Agency Staff,Human Resources
http://statistics.data.gov.uk/search?search=E07000114,Thanet District Council,10/01/2018,446383,11279.47,,REDACTED PERSONAL DATA,N/A,Corporate Resources and S151,Balance Sheet,Capital Exp-Non Council Assets,Grants
http://statistics.data.gov.uk/search?search=E07000114,Thanet District Council,10/01/2018,446019,270.00,,Rexel Uk Limited,REX003,Operational Services,Revenue,"Repairs,  Alter & Mtce - Build",Building Construction Material
http://statistics.data.gov.uk/search?search=E07000114,Thanet District Council,10/01/2018,446021,2180.00,,Riverside Truck Rental Limited,RIV005,Operational Services,Revenue,Cont Hire & Operating Lease,Vehicle Management
http://statistics.data.gov.uk/search?search=E07000114,Thanet District Council,10/01/2018,445606,940.70,,Sellick Partnership Ltd,SEL011,Corporate Governance,Revenue,Services,Human Resources
http://statistics.data.gov.uk/search?search=E07000114,Thanet District Council,10/01/2018,445630,940.70,,Sellick Partnership Ltd,SEL011,Corporate Governance,Revenue,Services,Human Resources
http://statistics.data.gov.uk/search?search=E07000114,Thanet District Council,10/01/2018,445988,940.70,,Sellick Partnership Ltd,SEL011,Corporate Governance,Revenue,Services,Human Resources
http://statistics.data.gov.uk/search?search=E07000114,Thanet District Council,10/01/2018,445660,432.00,,Sideways Media Limited,SID002,Community Services,Revenue,Miscellaneous Expenses,Facilities And Mangement Serv
http://statistics.data.gov.uk/search?search=E07000114,Thanet District Council,10/01/2018,446031,689.00,,Stagecoach Services Limited,STA023,Corporate Resources and S151,Balance Sheet,Staff Bus Permits Holding A/C,Public Transport
http://statistics.data.gov.uk/search?search=E07000114,Thanet District Council,10/01/2018,446032,689.00,,Stagecoach Services Limited,STA023,Corporate Resources and S151,Balance Sheet,Staff Bus Permits Holding A/C,Public Transport
http://statistics.data.gov.uk/search?search=E07000114,Thanet District Council,10/01/2018,445768,4359.50,,Streetmaster (S.Wales) Limited,STR001,Operational Services,Revenue,"Equip, Furniture And Materials",Highway Equipment And Material
http://statistics.data.gov.uk/search?search=E07000114,Thanet District Council,10/01/2018,445644,304.30,,Total Supplies Ltd,TOT009,Corporate Resources and S151,Revenue,Cleaning & Domestic Supplies,Cleaning And Janitorial
http://statistics.data.gov.uk/search?search=E07000114,Thanet District Council,10/01/2018,445644,-10.00,,Total Supplies Ltd,TOT009,Corporate Resources and S151,Balance Sheet,Stationery Stores,Cleaning And Janitorial
http://statistics.data.gov.uk/search?search=E07000114,Thanet District Council,10/01/2018,446078,350.90,,Total Supplies Ltd,TOT009,Operational Services,Revenue,Cleaning & Domestic Supplies,Cleaning And Janitorial
http://statistics.data.gov.uk/search?search=E07000114,Thanet District Council,10/01/2018,446053,1950.00,,University Of Birmingham,UNI016,Community Services,Revenue,Expenses,Human Resources
http://statistics.data.gov.uk/search?search=E07000114,Thanet District Council,10/01/2018,445377,850.00,,W Brazil & Bros,BRA001,Corporate Resources and S151,Balance Sheet,Repairs And Mtce Holding A/C,Environmental Services
http://statistics.data.gov.uk/search?search=E07000114,Thanet District Council,11/01/2018,446234,260.00,,Arvato Limited,ARV002,East Kent Shared Services,Revenue,Training,Human Resources
http://statistics.data.gov.uk/search?search=E07000114,Thanet District Council,11/01/2018,445921,1295.00,,Buckingham Futures Limited,BUC010,Community Services,Revenue,Agency Staff,Human Resources
http://statistics.data.gov.uk/search?search=E07000114,Thanet District Council,11/01/2018,445929,1181.25,,Buckingham Futures Limited,BUC010,Community Services,Revenue,Agency Staff,Human Resources
http://statistics.data.gov.uk/search?search=E07000114,Thanet District Council,11/01/2018,446077,341.25,,Buckingham Futures Limited,BUC010,Community Services,Revenue,Agency Staff,Human Resources
http://statistics.data.gov.uk/search?search=E07000114,Thanet District Council,11/01/2018,446228,1295.00,,Buckingham Futures Limited,BUC010,Community Services,Revenue,Agency Staff,Human Resources
http://statistics.data.gov.uk/search?search=E07000114,Thanet District Council,11/01/2018,446082,400.00,,C Stevens & Sons,STE034,Corporate Resources and S151,Balance Sheet,Other Land And Buildings-Hra,ICT
http://statistics.data.gov.uk/search?search=E07000114,Thanet District Council,11/01/2018,446257,2400.00,,Caxtons Commercial Ltd,CAX006,Operational Services,Revenue,Services,Consultancy
http://statistics.data.gov.uk/search?search=E07000114,Thanet District Council,11/01/2018,446079,29316.91,,Certas Energy Uk Ltd,CER005,Operational Services,Revenue,Direct Transport Costs,Vehicle Management
http://statistics.data.gov.uk/search?search=E07000114,Thanet District Council,11/01/2018,446038,15037.68,,Cloud Technology Solutions Ltd,CLO006,East Kent Shared Services,Revenue,Communications & Computing,ICT
http://statistics.data.gov.uk/search?search=E07000114,Thanet District Council,11/01/2018,445766,10878.00,,Dennis Eagle Ltd,DEN005,Operational Services,Revenue,"Equip, Furniture And Materials",Vehicle Management
http://statistics.data.gov.uk/search?search=E07000114,Thanet District Council,11/01/2018,446232,360.00,,Dover Counselling Centre,DOV014,East Kent Shared Services,Revenue,Employee Related Schemes,Healthcare
http://statistics.data.gov.uk/search?search=E07000114,Thanet District Council,11/01/2018,446113,380.00,,East Kent Components Ltd,EKC006,Operational Services,Revenue,Direct Transport Costs,Vehicle Management
http://statistics.data.gov.uk/search?search=E07000114,Thanet District Council,11/01/2018,446212,1218.00,,Estuary Services Ltd,EST002,Operational Services,Revenue,Cont Hire & Operating Lease,Maritime Services
http://statistics.data.gov.uk/search?search=E07000114,Thanet District Council,11/01/2018,446229,906.25,,Hays Specialist Recruitment Ltd,HAY020,Community Services,Revenue,Agency Staff,Human Resources
http://statistics.data.gov.uk/search?search=E07000114,Thanet District Council,11/01/2018,446029,779.10,,Hr Go (Kent) Ltd,HRG001,Operational Services,Revenue,Agency Staff,Human Resources
http://statistics.data.gov.uk/search?search=E07000114,Thanet District Council,11/01/2018,446074,779.10,,Hr Go (Kent) Ltd,HRG001,Operational Services,Revenue,Agency Staff,Human Resources
http://statistics.data.gov.uk/search?search=E07000114,Thanet District Council,11/01/2018,445485,2990.00,,Innovative Safety Systems Limited,INN002,Operational Services,Revenue,"Equip, Furniture And Materials",Vehicle Management
http://statistics.data.gov.uk/search?search=E07000114,Thanet District Council,11/01/2018,444933,45220.00,,Isuzu Truck (Uk) Limited,ISU001,Corporate Resources and S151,Balance Sheet,Plant And Equipment,Vehicle Management
http://statistics.data.gov.uk/search?search=E07000114,Thanet District Council,11/01/2018,444934,45220.00,,Isuzu Truck (Uk) Limited,ISU001,Corporate Resources and S151,Balance Sheet,Plant And Equipment,Vehicle Management
http://statistics.data.gov.uk/search?search=E07000114,Thanet District Council,11/01/2018,446040,930.00,,Main Man Supplies Ltd,MAI001,Operational Services,Revenue,"Clothes, Uniforms & Laundry",Clothing
http://statistics.data.gov.uk/search?search=E07000114,Thanet District Council,11/01/2018,446208,212.19,,Mears Ltd,MEA003,Corporate Governance,Revenue,"Repairs,  Alter & Mtce - Build",Construction-Repair And Maint
http://statistics.data.gov.uk/search?search=E07000114,Thanet District Council,11/01/2018,446208,70.73,,Mears Ltd,MEA003,Operational Services,Revenue,"Repairs,  Alter & Mtce - Build",Construction-Repair And Maint
http://statistics.data.gov.uk/search?search=E07000114,Thanet District Council,11/01/2018,446301,414.00,,One Two Three Send Limited,ONE007,Operational Services,Revenue,"Equip, Furniture And Materials",Financial Services
http://statistics.data.gov.uk/search?search=E07000114,Thanet District Council,11/01/2018,445452,724.00,,Pass Driving School Ltd,PAS003,Corporate Resources and S151,Revenue,Training,Human Resources
http://statistics.data.gov.uk/search?search=E07000114,Thanet District Council,11/01/2018,446201,400.00,,Rogers & Hambidge Ltd,ROG007,Community Services,Revenue,Services,Facilities And Mangement Serv
http://statistics.data.gov.uk/search?search=E07000114,Thanet District Council,11/01/2018,445775,1224.43,,Sparshatts Of Kent Ltd,SPA008,Operational Services,Revenue,Direct Transport Costs,Vehicle Management
http://statistics.data.gov.uk/search?search=E07000114,Thanet District Council,11/01/2018,446081,256.00,,The Yaboo Company Limited,YAB001,Operational Services,Revenue,"Equip, Furniture And Materials",Domestic Goods
http://statistics.data.gov.uk/search?search=E07000114,Thanet District Council,11/01/2018,445991,11699.54,,Town & Country Cleaners Ltd,TOW002,Corporate Resources and S151,Balance Sheet,Repairs And Mtce Holding A/C,Cleaning And Janitorial
http://statistics.data.gov.uk/search?search=E07000114,Thanet District Council,11/01/2018,446273,338.49,,Viridor Waste Management Ltd,VIR003,Corporate Governance,Revenue,Cleaning & Domestic Supplies,Environmental Services
http://statistics.data.gov.uk/search?search=E07000114,Thanet District Council,12/01/2018,446683,6202.69,,Dover District Council,DOV001,East Kent Shared Services,Revenue,Grants & Subscriptions,Various Cats-Public Sector
http://statistics.data.gov.uk/search?search=E07000114,Thanet District Council,12/01/2018,446684,66000.00,,Dover District Council,DOV001,East Kent Shared Services,Revenue,Grants & Subscriptions,Various Cats-Public Sector
http://statistics.data.gov.uk/search?search=E07000114,Thanet District Council,12/01/2018,445441,235.00,,Holt & Wotton Ltd,HOL001,Corporate Resources and S151,Balance Sheet,Repairs And Mtce Holding A/C,Building Construction Material
http://statistics.data.gov.uk/search?search=E07000114,Thanet District Council,12/01/2018,445491,446.56,,Ntm-Gb Limited,NTM001,Operational Services,Revenue,Direct Transport Costs,Vehicle Management
http://statistics.data.gov.uk/search?search=E07000114,Thanet District Council,12/01/2018,445622,1045.56,,Ntm-Gb Limited,NTM001,Operational Services,Revenue,Direct Transport Costs,Vehicle Management
http://statistics.data.gov.uk/search?search=E07000114,Thanet District Council,12/01/2018,441593,11525.00,,Weir & Carmichael Limited,WEI004,Operational Services,Revenue,"Equip, Furniture And Materials",Environmental Services
http://statistics.data.gov.uk/search?search=E07000114,Thanet District Council,12/01/2018,445734,-1275.00,,Weir & Carmichael Limited,WEI004,Operational Services,Revenue,"Equip, Furniture And Materials",Environmental Services
http://statistics.data.gov.uk/search?search=E07000114,Thanet District Council,12/01/2018,446682,1275.00,,Weir & Carmichael Limited,WEI004,Operational Services,Revenue,"Equip, Furniture And Materials",Environmental Services
http://statistics.data.gov.uk/search?search=E07000114,Thanet District Council,16/01/2018,446732,2595.00,,Access & Automation Limited,ACC012,Corporate Resources and S151,Balance Sheet,Capital Exp-Non Council Assets,Facilities And Mangement Serv
http://statistics.data.gov.uk/search?search=E07000114,Thanet District Council,16/01/2018,446615,1045.00,,Advanced Business Solutions,COA011,Corporate Resources and S151,Revenue,Communications & Computing,ICT
http://statistics.data.gov.uk/search?search=E07000114,Thanet District Council,16/01/2018,446605,585.00,,Andy Morris,MOR028,Community Services,Revenue,Services,Arts And Leisure Services
http://statistics.data.gov.uk/search?search=E07000114,Thanet District Council,16/01/2018,446783,5671.00,,Boys & Maughan,BOY001,Corporate Resources and S151,Balance Sheet,Other Land And Buildings-Hra,Various Categories
http://statistics.data.gov.uk/search?search=E07000114,Thanet District Council,16/01/2018,446784,5454.80,,Boys & Maughan,BOY001,Corporate Resources and S151,Balance Sheet,Other Land And Buildings-Hra,Various Categories
http://statistics.data.gov.uk/search?search=E07000114,Thanet District Council,16/01/2018,446661,478.39,,Ccs Media Limited,CCS003,East Kent Shared Services,Revenue,Communications & Computing,ICT
http://statistics.data.gov.uk/search?search=E07000114,Thanet District Council,16/01/2018,446462,1500.00,,Christian Panayi,PAN003,Corporate Governance,Revenue,Services,Legal Services
http://statistics.data.gov.uk/search?search=E07000114,Thanet District Council,16/01/2018,446057,512.51,,Clague Llp,CLA038,Operational Services,Revenue,Services,Construction-Repair And Maint
http://statistics.data.gov.uk/search?search=E07000114,Thanet District Council,16/01/2018,445970,465.00,,Cloud Technology Solutions Ltd,CLO006,East Kent Shared Services,Revenue,Communications & Computing,ICT
http://statistics.data.gov.uk/search?search=E07000114,Thanet District Council,16/01/2018,446252,2889.60,,Cobalt Telephone Technologies Ltd,COB002,Operational Services,Revenue,Services,ICT
http://statistics.data.gov.uk/search?search=E07000114,Thanet District Council,16/01/2018,446788,49028.03,,D C L G,DCL002,Corporate Resources and S151,Balance Sheet,Capital Receipts Reserve,Government Agencies
http://statistics.data.gov.uk/search?search=E07000114,Thanet District Council,16/01/2018,446663,1494.11,,Dha Planning Limited,DHA002,Community Services,Revenue,Services,Consultancy
http://statistics.data.gov.uk/search?search=E07000114,Thanet District Council,16/01/2018,446785,300.00,,Dolphin Lifts Kent,DOL003,Corporate Resources and S151,Balance Sheet,Capital Exp-Non Council Assets,Grants
http://statistics.data.gov.uk/search?search=E07000114,Thanet District Council,16/01/2018,446786,400.00,,Dolphin Lifts Kent,DOL003,Corporate Resources and S151,Balance Sheet,Capital Exp-Non Council Assets,Grants
http://statistics.data.gov.uk/search?search=E07000114,Thanet District Council,16/01/2018,446787,4600.00,,Dolphin Lifts Kent,DOL003,Corporate Resources and S151,Balance Sheet,Capital Exp-Non Council Assets,Grants
http://statistics.data.gov.uk/search?search=E07000114,Thanet District Council,16/01/2018,446456,170.00,,Dover Counselling Centre,DOV014,Corporate Resources and S151,Revenue,Employee Related Schemes,Healthcare
http://statistics.data.gov.uk/search?search=E07000114,Thanet District Council,16/01/2018,446456,190.00,,Dover Counselling Centre,DOV014,Operational Services,Revenue,Employee Related Schemes,Healthcare
http://statistics.data.gov.uk/search?search=E07000114,Thanet District Council,16/01/2018,446780,1443.38,,Family Mosaic Housing,FAM001,Corporate Resources and S151,Balance Sheet,Capital Exp-Non Council Assets,Housing Management
http://statistics.data.gov.uk/search?search=E07000114,Thanet District Council,16/01/2018,446781,862.16,,Family Mosaic Housing,FAM001,Corporate Resources and S151,Balance Sheet,Capital Exp-Non Council Assets,Housing Management
http://statistics.data.gov.uk/search?search=E07000114,Thanet District Council,16/01/2018,446600,553.72,,Farrer Barnes Limited,FAR012,Corporate Resources and S151,Revenue,Agency Staff,Human Resources
http://statistics.data.gov.uk/search?search=E07000114,Thanet District Council,16/01/2018,446601,492.01,,Farrer Barnes Limited,FAR012,Corporate Resources and S151,Revenue,Agency Staff,Human Resources
http://statistics.data.gov.uk/search?search=E07000114,Thanet District Council,16/01/2018,446101,271.60,,Gas Contract Services Ltd,GAS004,Corporate Resources and S151,Balance Sheet,Repairs And Mtce Holding A/C,Construction-Repair And Maint
http://statistics.data.gov.uk/search?search=E07000114,Thanet District Council,16/01/2018,446227,888.96,,Gas Contract Services Ltd,GAS004,Corporate Resources and S151,Balance Sheet,Repairs And Mtce Holding A/C,Construction-Repair And Maint
http://statistics.data.gov.uk/search?search=E07000114,Thanet District Council,16/01/2018,446268,650.00,,Hi Way Services Ltd,HIW002,Operational Services,Revenue,"Repairs,  Alter & Mtce - Build",Highway Equipment And Material
http://statistics.data.gov.uk/search?search=E07000114,Thanet District Council,16/01/2018,446213,743.37,,Hilton Cabinet Co Ltd,HIL002,Operational Services,Revenue,"Equip, Furniture And Materials",Furniture And Soft Furnishings
http://statistics.data.gov.uk/search?search=E07000114,Thanet District Council,16/01/2018,446028,352.55,,Hr Go (Kent) Ltd,HRG001,Operational Services,Revenue,Agency Staff,Human Resources
http://statistics.data.gov.uk/search?search=E07000114,Thanet District Council,16/01/2018,446028,449.55,,Hr Go (Kent) Ltd,HRG001,Operational Services,Revenue,Services,Human Resources
http://statistics.data.gov.uk/search?search=E07000114,Thanet District Council,16/01/2018,446070,269.22,,Hr Go (Kent) Ltd,HRG001,Operational Services,Revenue,Agency Staff,Human Resources
http://statistics.data.gov.uk/search?search=E07000114,Thanet District Council,16/01/2018,446070,449.55,,Hr Go (Kent) Ltd,HRG001,Operational Services,Revenue,Services,Human Resources
http://statistics.data.gov.uk/search?search=E07000114,Thanet District Council,16/01/2018,446240,510.04,,Hr Go (Kent) Ltd,HRG001,Operational Services,Revenue,Agency Staff,Human Resources
http://statistics.data.gov.uk/search?search=E07000114,Thanet District Council,16/01/2018,446242,443.93,,Hr Go (Kent) Ltd,HRG001,Operational Services,Revenue,Agency Staff,Human Resources
http://statistics.data.gov.uk/search?search=E07000114,Thanet District Council,16/01/2018,446598,6290.00,,Keep Britain Tidy,KEE011,Operational Services,Revenue,Grants & Subscriptions,Human Resources
http://statistics.data.gov.uk/search?search=E07000114,Thanet District Council,16/01/2018,446536,799.00,,Km Media Group Limited,KMM001,Corporate Resources and S151,Revenue,Miscellaneous Expenses,Facilities And Mangement Serv
http://statistics.data.gov.uk/search?search=E07000114,Thanet District Council,16/01/2018,446538,300.00,,Km Media Group Limited,KMM001,Corporate Governance,Revenue,"Repairs,  Alter & Mtce - Build",Facilities And Mangement Serv
http://statistics.data.gov.uk/search?search=E07000114,Thanet District Council,16/01/2018,446543,1650.00,,Km Media Group Limited,KMM001,Operational Services,Revenue,Miscellaneous Expenses,Facilities And Mangement Serv
http://statistics.data.gov.uk/search?search=E07000114,Thanet District Council,16/01/2018,446276,1161.69,,Level 3 Communications (Uk) Ltd,LEV005,Corporate Resources and S151,Balance Sheet,Telephone Holding Account,ICT
http://statistics.data.gov.uk/search?search=E07000114,Thanet District Council,16/01/2018,446209,684.64,,Mears Ltd,MEA003,Corporate Resources and S151,Balance Sheet,Repairs And Mtce Holding A/C,Construction-Repair And Maint
http://statistics.data.gov.uk/search?search=E07000114,Thanet District Council,16/01/2018,446210,4861.39,,Mears Ltd,MEA003,Corporate Resources and S151,Balance Sheet,Repairs And Mtce Holding A/C,Construction-Repair And Maint
http://statistics.data.gov.uk/search?search=E07000114,Thanet District Council,16/01/2018,446826,2000.00,,Neopost Ltd Credifon,NEO002,Corporate Governance,Revenue,Communications & Computing,Mail Services
http://statistics.data.gov.uk/search?search=E07000114,Thanet District Council,16/01/2018,446550,625.00,,Northgate Public Services (Uk) Ltd,NOR018,Community Services,Revenue,Communications & Computing,ICT
http://statistics.data.gov.uk/search?search=E07000114,Thanet District Council,16/01/2018,445877,1062.00,,Oak Housing Limited,OAK008,Community Services,Revenue,Services,Housing Management
http://statistics.data.gov.uk/search?search=E07000114,Thanet District Council,16/01/2018,446679,6360.00,,Penna Plc,PEN008,Corporate Resources and S151,Revenue,Services,Human Resources
http://statistics.data.gov.uk/search?search=E07000114,Thanet District Council,16/01/2018,446782,7184.65,,Premiere Projects Limited,PRE022,Corporate Resources and S151,Balance Sheet,Capital Exp-Non Council Assets,Grants
http://statistics.data.gov.uk/search?search=E07000114,Thanet District Council,16/01/2018,445912,721.50,,R S S (Wessex) Limited,RSS002,Operational Services,Revenue,Agency Staff,Human Resources
http://statistics.data.gov.uk/search?search=E07000114,Thanet District Council,16/01/2018,445915,721.50,,R S S (Wessex) Limited,RSS002,Operational Services,Revenue,Agency Staff,Human Resources
http://statistics.data.gov.uk/search?search=E07000114,Thanet District Council,16/01/2018,446069,721.50,,R S S (Wessex) Limited,RSS002,Operational Services,Revenue,Agency Staff,Human Resources
http://statistics.data.gov.uk/search?search=E07000114,Thanet District Council,16/01/2018,446551,582.12,,Sellick Partnership Ltd,SEL011,Corporate Governance,Revenue,Services,Human Resources
http://statistics.data.gov.uk/search?search=E07000114,Thanet District Council,16/01/2018,446589,940.70,,Sellick Partnership Ltd,SEL011,Corporate Governance,Revenue,Services,Human Resources
http://statistics.data.gov.uk/search?search=E07000114,Thanet District Council,16/01/2018,446702,465.36,,Sellick Partnership Ltd,SEL011,Corporate Governance,Revenue,Services,Human Resources
http://statistics.data.gov.uk/search?search=E07000114,Thanet District Council,16/01/2018,446658,840.67,,Sicuro Uk Ltd,SIC001,Corporate Resources and S151,Balance Sheet,Council Dwellings,Facilities And Mangement Serv
http://statistics.data.gov.uk/search?search=E07000114,Thanet District Council,16/01/2018,446211,530.00,,Standfast Burglar Alarm Co (Ek) Ltd,STA003,Corporate Resources and S151,Balance Sheet,Other Land And Buildings-Hra,Facilities And Mangement Serv
http://statistics.data.gov.uk/search?search=E07000114,Thanet District Council,16/01/2018,446698,550.00,,The Coach Tourism Assoc Limited,COA019,Community Services,Revenue,Grants & Subscriptions,Financial Services
http://statistics.data.gov.uk/search?search=E07000114,Thanet District Council,16/01/2018,446298,911.40,,The Fed Of Burial & Cremation Auths,FED001,Operational Services,Revenue,Grants & Subscriptions,Financial Services
http://statistics.data.gov.uk/search?search=E07000114,Thanet District Council,16/01/2018,446037,1283.33,,The Glenwood Hotel,GLE007,Community Services,Revenue,Services,Housing Management
http://statistics.data.gov.uk/search?search=E07000114,Thanet District Council,16/01/2018,446039,3820.84,,The Glenwood Hotel,GLE007,Community Services,Revenue,Services,Housing Management
http://statistics.data.gov.uk/search?search=E07000114,Thanet District Council,16/01/2018,446041,2858.34,,The Glenwood Hotel,GLE007,Community Services,Revenue,Services,Housing Management
http://statistics.data.gov.uk/search?search=E07000114,Thanet District Council,16/01/2018,446043,3470.86,,The Glenwood Hotel,GLE007,Community Services,Revenue,Services,Housing Management
http://statistics.data.gov.uk/search?search=E07000114,Thanet District Council,16/01/2018,446045,1841.67,,The Glenwood Hotel,GLE007,Community Services,Revenue,Services,Housing Management
http://statistics.data.gov.uk/search?search=E07000114,Thanet District Council,16/01/2018,446047,3704.19,,The Glenwood Hotel,GLE007,Community Services,Revenue,Services,Housing Management
http://statistics.data.gov.uk/search?search=E07000114,Thanet District Council,16/01/2018,446049,2858.34,,The Glenwood Hotel,GLE007,Community Services,Revenue,Services,Housing Management
http://statistics.data.gov.uk/search?search=E07000114,Thanet District Council,16/01/2018,446050,3820.84,,The Glenwood Hotel,GLE007,Community Services,Revenue,Services,Housing Management
http://statistics.data.gov.uk/search?search=E07000114,Thanet District Council,16/01/2018,446463,214.00,,Veale Wasbrough Vizards Llp,VEA001,Operational Services,Revenue,Services,Legal Services
http://statistics.data.gov.uk/search?search=E07000114,Thanet District Council,16/01/2018,446271,208.62,,Viridor Waste Management Ltd,VIR003,Corporate Governance,Revenue,Cleaning & Domestic Supplies,Environmental Services
http://statistics.data.gov.uk/search?search=E07000114,Thanet District Council,17/01/2018,446042,648.98,,Adecco Uk Ltd,ADE005,Chief Executive,Revenue,Agency Staff,Human Resources
http://statistics.data.gov.uk/search?search=E07000114,Thanet District Council,17/01/2018,446076,666.52,,Adecco Uk Ltd,ADE005,Chief Executive,Revenue,Agency Staff,Human Resources
http://statistics.data.gov.uk/search?search=E07000114,Thanet District Council,17/01/2018,446017,2100.00,,All About Asbestos Limited,ALL044,Corporate Governance,Revenue,"Repairs,  Alter & Mtce - Build",Environmental Services
http://statistics.data.gov.uk/search?search=E07000114,Thanet District Council,17/01/2018,445848,141.42,,Canon (Uk) Ltd,CAN021,Community Services,Revenue,"Equip, Furniture And Materials",Facilities And Mangement Serv
http://statistics.data.gov.uk/search?search=E07000114,Thanet District Council,17/01/2018,445848,1133.25,,Canon (Uk) Ltd,CAN021,Corporate Governance,Revenue,"Equip, Furniture And Materials",Facilities And Mangement Serv
http://statistics.data.gov.uk/search?search=E07000114,Thanet District Council,17/01/2018,445848,707.10,,Canon (Uk) Ltd,CAN021,Operational Services,Revenue,"Equip, Furniture And Materials",Facilities And Mangement Serv
http://statistics.data.gov.uk/search?search=E07000114,Thanet District Council,17/01/2018,445800,258.99,,Child Poverty Action Group,CPA001,East Kent Shared Services,Revenue,"Print, Stat And Gen Off Exps",Financial Services
http://statistics.data.gov.uk/search?search=E07000114,Thanet District Council,17/01/2018,445971,1696.00,,Cobalt Consulting (Uk) Limited,COB004,Corporate Governance,Revenue,Agency Staff,Human Resources
http://statistics.data.gov.uk/search?search=E07000114,Thanet District Council,17/01/2018,445658,4550.00,,Dixon Searle Partnership Limited,DIX007,Community Services,Revenue,Services,Consultancy
http://statistics.data.gov.uk/search?search=E07000114,Thanet District Council,17/01/2018,446285,1223.17,,Dover District Council,DOV001,Corporate Governance,Revenue,Services,Various Cats-Public Sector
http://statistics.data.gov.uk/search?search=E07000114,Thanet District Council,17/01/2018,446293,1695.87,,Dover District Council,DOV001,Corporate Governance,Revenue,Services,Various Cats-Public Sector
http://statistics.data.gov.uk/search?search=E07000114,Thanet District Council,17/01/2018,446294,53.63,,Dover District Council,DOV001,Corporate Resources and S151,Revenue,Services,Various Cats-Public Sector
http://statistics.data.gov.uk/search?search=E07000114,Thanet District Council,17/01/2018,446295,63.58,,Dover District Council,DOV001,Corporate Resources and S151,Revenue,Services,Various Cats-Public Sector
http://statistics.data.gov.uk/search?search=E07000114,Thanet District Council,17/01/2018,446296,141.37,,Dover District Council,DOV001,Corporate Resources and S151,Revenue,Services,Various Cats-Public Sector
http://statistics.data.gov.uk/search?search=E07000114,Thanet District Council,17/01/2018,446297,34.66,,Dover District Council,DOV001,Corporate Resources and S151,Revenue,Services,Various Cats-Public Sector
http://statistics.data.gov.uk/search?search=E07000114,Thanet District Council,17/01/2018,445986,4890.00,,Drury Mcpherson Partnership,DRU003,Community Services,Revenue,Services,Legal Services
http://statistics.data.gov.uk/search?search=E07000114,Thanet District Council,17/01/2018,446590,610.72,,Electoral Reform Services,ELE010,Corporate Governance,Revenue,"Print, Stat And Gen Off Exps",Facilities And Mangement Serv
http://statistics.data.gov.uk/search?search=E07000114,Thanet District Council,17/01/2018,445895,7273.00,,Estateman Limited,EST006,Corporate Governance,Revenue,Communications & Computing,ICT
http://statistics.data.gov.uk/search?search=E07000114,Thanet District Council,17/01/2018,445797,488.58,,Insight Direct (Uk) Ltd,INS013,East Kent Shared Services,Revenue,Communications & Computing,ICT
http://statistics.data.gov.uk/search?search=E07000114,Thanet District Council,17/01/2018,446638,2004.08,,Kent County Council (Kcs),KCC003,Corporate Governance,Revenue,Energy Costs,Facilities And Mangement Serv
http://statistics.data.gov.uk/search?search=E07000114,Thanet District Council,17/01/2018,446639,645.30,,Kent County Council (Kcs),KCC003,Operational Services,Revenue,Energy Costs,Facilities And Mangement Serv
http://statistics.data.gov.uk/search?search=E07000114,Thanet District Council,17/01/2018,446640,355.78,,Kent County Council (Kcs),KCC003,Corporate Governance,Revenue,Energy Costs,Facilities And Mangement Serv
http://statistics.data.gov.uk/search?search=E07000114,Thanet District Council,17/01/2018,446641,1610.18,,Kent County Council (Kcs),KCC003,Community Services,Revenue,Energy Costs,Facilities And Mangement Serv
http://statistics.data.gov.uk/search?search=E07000114,Thanet District Council,17/01/2018,446642,524.39,,Kent County Council (Kcs),KCC003,Operational Services,Revenue,Energy Costs,Facilities And Mangement Serv
http://statistics.data.gov.uk/search?search=E07000114,Thanet District Council,17/01/2018,446645,1768.02,,Kent County Council (Kcs),KCC003,Operational Services,Revenue,Energy Costs,Facilities And Mangement Serv
http://statistics.data.gov.uk/search?search=E07000114,Thanet District Council,17/01/2018,446647,1565.45,,Kent County Council (Kcs),KCC003,Corporate Governance,Revenue,Energy Costs,Facilities And Mangement Serv
http://statistics.data.gov.uk/search?search=E07000114,Thanet District Council,17/01/2018,446651,907.73,,Kent County Council (Kcs),KCC003,Operational Services,Revenue,Energy Costs,Facilities And Mangement Serv
http://statistics.data.gov.uk/search?search=E07000114,Thanet District Council,17/01/2018,446653,1742.45,,Kent County Council (Kcs),KCC003,Operational Services,Revenue,Energy Costs,Facilities And Mangement Serv
http://statistics.data.gov.uk/search?search=E07000114,Thanet District Council,17/01/2018,446654,2027.96,,Kent County Council (Kcs),KCC003,Operational Services,Revenue,Energy Costs,Facilities And Mangement Serv
http://statistics.data.gov.uk/search?search=E07000114,Thanet District Council,17/01/2018,446655,1015.22,,Kent County Council (Kcs),KCC003,Operational Services,Revenue,Energy Costs,Facilities And Mangement Serv
http://statistics.data.gov.uk/search?search=E07000114,Thanet District Council,17/01/2018,445919,900.00,,Michael Page Int Recruitment Ltd,PAG008,East Kent Shared Services,Revenue,Agency Staff,Human Resources
http://statistics.data.gov.uk/search?search=E07000114,Thanet District Council,17/01/2018,445974,1762.50,,Playle & Partners Llp,PLA030,Community Services,Revenue,Services,Human Resources
http://statistics.data.gov.uk/search?search=E07000114,Thanet District Council,17/01/2018,446883,18325.67,,REDACTED PERSONAL DATA,N/A,Corporate Resources and S151,Balance Sheet,Capital Exp-Non Council Assets,Grants
http://statistics.data.gov.uk/search?search=E07000114,Thanet District Council,17/01/2018,445966,3780.00,,Riverside Truck Rental Limited,RIV005,Operational Services,Revenue,Cont Hire & Operating Lease,Vehicle Management
http://statistics.data.gov.uk/search?search=E07000114,Thanet District Council,17/01/2018,446537,491.88,,Scottish Water Business Stream Ltd,SCO019,Operational Services,Revenue,Water Services,Utilities
http://statistics.data.gov.uk/search?search=E07000114,Thanet District Council,17/01/2018,446622,3057.73,,Scottish Water Business Stream Ltd,SCO019,Operational Services,Revenue,Water Services,Utilities
http://statistics.data.gov.uk/search?search=E07000114,Thanet District Council,17/01/2018,446623,981.51,,Scottish Water Business Stream Ltd,SCO019,Operational Services,Revenue,Water Services,Utilities
http://statistics.data.gov.uk/search?search=E07000114,Thanet District Council,17/01/2018,444251,2992.15,,Southern Electric,SEL007,Corporate Governance,Revenue,Energy Costs,Utilities
http://statistics.data.gov.uk/search?search=E07000114,Thanet District Council,17/01/2018,446475,231.10,,Southern Electric,SEL007,Operational Services,Revenue,Energy Costs,Utilities
http://statistics.data.gov.uk/search?search=E07000114,Thanet District Council,17/01/2018,446480,273.81,,Southern Electric,SEL007,Operational Services,Revenue,Energy Costs,Utilities
http://statistics.data.gov.uk/search?search=E07000114,Thanet District Council,17/01/2018,446483,335.13,,Southern Electric,SEL007,Operational Services,Revenue,Energy Costs,Utilities
http://statistics.data.gov.uk/search?search=E07000114,Thanet District Council,17/01/2018,446486,-2992.15,,Southern Electric,SEL007,Corporate Governance,Revenue,Energy Costs,Utilities
http://statistics.data.gov.uk/search?search=E07000114,Thanet District Council,17/01/2018,446493,2224.76,,Southern Electric,SEL007,Corporate Governance,Revenue,Energy Costs,Utilities
http://statistics.data.gov.uk/search?search=E07000114,Thanet District Council,17/01/2018,446496,5.70,,Southern Electric,SEL007,Community Services,Revenue,Energy Costs,Utilities
http://statistics.data.gov.uk/search?search=E07000114,Thanet District Council,17/01/2018,446496,608.97,,Southern Electric,SEL007,Operational Services,Revenue,Energy Costs,Utilities
http://statistics.data.gov.uk/search?search=E07000114,Thanet District Council,17/01/2018,446056,250.00,,Survey And Test,SUR015,Corporate Governance,Revenue,"Repairs,  Alter & Mtce - Build",Utilities
http://statistics.data.gov.uk/search?search=E07000114,Thanet District Council,17/01/2018,446244,5851.00,,Townsends Engineering Ltd,TOW016,Corporate Resources and S151,Balance Sheet,Rechargeable Works,Construction-Repair And Maint
http://statistics.data.gov.uk/search?search=E07000114,Thanet District Council,17/01/2018,446245,5768.00,,Townsends Engineering Ltd,TOW016,Operational Services,Revenue,"Repairs,  Alter & Mtce - Build",Construction-Repair And Maint
http://statistics.data.gov.uk/search?search=E07000114,Thanet District Council,17/01/2018,446246,2808.00,,Townsends Engineering Ltd,TOW016,Operational Services,Revenue,"Repairs,  Alter & Mtce - Build",Construction-Repair And Maint
http://statistics.data.gov.uk/search?search=E07000114,Thanet District Council,17/01/2018,446247,1185.00,,Townsends Engineering Ltd,TOW016,Operational Services,Revenue,"Repairs,  Alter & Mtce - Build",Construction-Repair And Maint
http://statistics.data.gov.uk/search?search=E07000114,Thanet District Council,18/01/2018,446292,21750.00,,Citizens Advice Thanet,CIT016,Community Services,Revenue,Grants & Subscriptions,Human Resources
http://statistics.data.gov.uk/search?search=E07000114,Thanet District Council,18/01/2018,447005,267237.00,,Kent & Medway Towns Fire Authority,KMT001,Corporate Resources and S151,Balance Sheet,Collection Fund - Preceptors,Various Cats-Public Sector
http://statistics.data.gov.uk/search?search=E07000114,Thanet District Council,18/01/2018,447006,4273992.00,,Kent County Council,KCC022,Corporate Resources and S151,Balance Sheet,Collection Fund - Preceptors,Various Cats-Public Sector
http://statistics.data.gov.uk/search?search=E07000114,Thanet District Council,18/01/2018,447007,566761.00,,Kent Police & Crime Commissioner,KPA003,Corporate Resources and S151,Balance Sheet,Collection Fund - Preceptors,Various Cats-Public Sector
http://statistics.data.gov.uk/search?search=E07000114,Thanet District Council,18/01/2018,446064,786.67,,Ntm-Gb Limited,NTM001,Operational Services,Revenue,Direct Transport Costs,Vehicle Management
http://statistics.data.gov.uk/search?search=E07000114,Thanet District Council,18/01/2018,446062,781.00,,Rigby Taylor Ltd,RIG002,Operational Services,Revenue,"Repairs,  Alter & Mtce - Build",Horticultural
http://statistics.data.gov.uk/search?search=E07000114,Thanet District Council,18/01/2018,446746,2934.39,,Scottish Water Business Stream Ltd,SCO019,Corporate Governance,Revenue,Water Services,Utilities
http://statistics.data.gov.uk/search?search=E07000114,Thanet District Council,18/01/2018,446749,-1002.55,,Scottish Water Business Stream Ltd,SCO019,Operational Services,Revenue,Water Services,Utilities
http://statistics.data.gov.uk/search?search=E07000114,Thanet District Council,18/01/2018,446750,1017.24,,Scottish Water Business Stream Ltd,SCO019,Operational Services,Revenue,Water Services,Utilities
http://statistics.data.gov.uk/search?search=E07000114,Thanet District Council,18/01/2018,446752,1022.62,,Scottish Water Business Stream Ltd,SCO019,Operational Services,Revenue,Water Services,Utilities
http://statistics.data.gov.uk/search?search=E07000114,Thanet District Council,18/01/2018,446889,1018.64,,Scottish Water Business Stream Ltd,SCO019,Operational Services,Revenue,Water Services,Utilities
http://statistics.data.gov.uk/search?search=E07000114,Thanet District Council,18/01/2018,446943,3245.94,,Tim Darsley Associates Limited,TIM010,Corporate Governance,Revenue,Services,Human Resources
http://statistics.data.gov.uk/search?search=E07000114,Thanet District Council,19/01/2018,N/A,252.33,,REDACTED PERSONAL DATA,N/A,East Kent Shared Services,Revenue,Car Allowances,Non Trade Payee
http://statistics.data.gov.uk/search?search=E07000114,Thanet District Council,19/01/2018,N/A,292.13,,REDACTED PERSONAL DATA,N/A,East Kent Shared Services,Revenue,Car Allowances,Non Trade Payee
http://statistics.data.gov.uk/search?search=E07000114,Thanet District Council,19/01/2018,N/A,348.65,,REDACTED PERSONAL DATA,N/A,East Kent Shared Services,Revenue,Car Allowances,Non Trade Payee
http://statistics.data.gov.uk/search?search=E07000114,Thanet District Council,19/01/2018,N/A,272.23,,REDACTED PERSONAL DATA,N/A,Community Services,Revenue,Car Allowances,Non Trade Payee
http://statistics.data.gov.uk/search?search=E07000114,Thanet District Council,19/01/2018,N/A,200.59,,REDACTED PERSONAL DATA,N/A,Community Services,Revenue,Car Allowances,Non Trade Payee
http://statistics.data.gov.uk/search?search=E07000114,Thanet District Council,19/01/2018,N/A,9.99,,REDACTED PERSONAL DATA,N/A,Community Services,Revenue,"Print, Stat And Gen Off Exps",Non Trade Payee
http://statistics.data.gov.uk/search?search=E07000114,Thanet District Council,19/01/2018,N/A,99.70,,REDACTED PERSONAL DATA,N/A,Community Services,Revenue,Public Transport,Non Trade Payee
http://statistics.data.gov.uk/search?search=E07000114,Thanet District Council,19/01/2018,N/A,431.43,,REDACTED PERSONAL DATA,N/A,Operational Services,Revenue,Car Allowances,Non Trade Payee
http://statistics.data.gov.uk/search?search=E07000114,Thanet District Council,19/01/2018,N/A,16.36,,REDACTED PERSONAL DATA,N/A,Corporate Resources and S151,Revenue,Car Allowances,Non Trade Payee
http://statistics.data.gov.uk/search?search=E07000114,Thanet District Council,19/01/2018,N/A,73.30,,REDACTED PERSONAL DATA,N/A,Corporate Resources and S151,Revenue,Public Transport,Non Trade Payee
http://statistics.data.gov.uk/search?search=E07000114,Thanet District Council,19/01/2018,N/A,410.00,,REDACTED PERSONAL DATA,N/A,Corporate Resources and S151,Revenue,Grants & Subscriptions,Non Trade Payee
http://statistics.data.gov.uk/search?search=E07000114,Thanet District Council,23/01/2018,447130,659.88,,Adecco Uk Ltd,ADE005,Chief Executive,Revenue,Agency Staff,Human Resources
http://statistics.data.gov.uk/search?search=E07000114,Thanet District Council,23/01/2018,447086,3475.00,,Adelante Software Limited,ADE002,Corporate Resources and S151,Revenue,Communications & Computing,ICT
http://statistics.data.gov.uk/search?search=E07000114,Thanet District Council,23/01/2018,446731,365.00,,Arco Limited,ARC001,Operational Services,Revenue,"Clothes, Uniforms & Laundry",Clothing
http://statistics.data.gov.uk/search?search=E07000114,Thanet District Council,23/01/2018,446731,0.04,,Arco Limited,ARC001,Operational Services,Revenue,"Equip, Furniture And Materials",Clothing
http://statistics.data.gov.uk/search?search=E07000114,Thanet District Council,23/01/2018,447160,2235.00,,Ascendit Lifts Ltd,ASC001,Corporate Resources and S151,Balance Sheet,Capital Exp-Non Council Assets,Grants
http://statistics.data.gov.uk/search?search=E07000114,Thanet District Council,23/01/2018,447166,11970.00,,Ascendit Lifts Ltd,ASC001,Corporate Resources and S151,Balance Sheet,Capital Exp-Non Council Assets,Grants
http://statistics.data.gov.uk/search?search=E07000114,Thanet District Council,23/01/2018,446611,1300.00,,Ashdown Supplies,ASH009,Operational Services,Revenue,"Equip, Furniture And Materials",Cemetery And Crematorium
http://statistics.data.gov.uk/search?search=E07000114,Thanet District Council,23/01/2018,447177,1225.00,,Bluebird Training & Consultancy Ltd,BLU014,Operational Services,Revenue,"Clothes, Uniforms & Laundry",Human Resources
http://statistics.data.gov.uk/search?search=E07000114,Thanet District Council,23/01/2018,447165,12356.03,,Bramling Construction Ltd,BRA020,Corporate Resources and S151,Balance Sheet,Capital Exp-Non Council Assets,Grants
http://statistics.data.gov.uk/search?search=E07000114,Thanet District Council,23/01/2018,447075,1550.00,,British Destinations,BRA002,Community Services,Revenue,Grants & Subscriptions,Human Resources
http://statistics.data.gov.uk/search?search=E07000114,Thanet District Council,23/01/2018,447174,1980.00,,Broadstairs Gas Services Ltd,BRO083,Corporate Resources and S151,Balance Sheet,Capital Exp-Non Council Assets,Grants
http://statistics.data.gov.uk/search?search=E07000114,Thanet District Council,23/01/2018,446745,225.00,,Countrystyle Recycling Limited,COU019,Operational Services,Revenue,Cont Hire & Operating Lease,Environmental Services
http://statistics.data.gov.uk/search?search=E07000114,Thanet District Council,23/01/2018,447015,1800.00,,Cripps Llp,CRI011,Corporate Resources and S151,Revenue,Services,Legal Services
http://statistics.data.gov.uk/search?search=E07000114,Thanet District Council,23/01/2018,447035,23696.70,,Dcb (Kent) Ltd,DCB001,Corporate Resources and S151,Balance Sheet,Repairs And Mtce Holding A/C,Construction-Repair And Maint
http://statistics.data.gov.uk/search?search=E07000114,Thanet District Council,23/01/2018,447136,759.00,,Dennis Eagle Limited,TER011,Operational Services,Revenue,Direct Transport Costs,Vehicle Management
http://statistics.data.gov.uk/search?search=E07000114,Thanet District Council,23/01/2018,447132,442.88,,Dennis Eagle Ltd,DEN005,Operational Services,Revenue,Direct Transport Costs,Vehicle Management
http://statistics.data.gov.uk/search?search=E07000114,Thanet District Council,23/01/2018,447163,5750.00,,Dolphin Lifts Kent,DOL003,Corporate Resources and S151,Balance Sheet,Capital Exp-Non Council Assets,Grants
http://statistics.data.gov.uk/search?search=E07000114,Thanet District Council,23/01/2018,447172,4700.00,,Dolphin Lifts Kent,DOL003,Corporate Resources and S151,Balance Sheet,Capital Exp-Non Council Assets,Grants
http://statistics.data.gov.uk/search?search=E07000114,Thanet District Council,23/01/2018,446455,155.00,,Dover Counselling Centre,DOV014,Corporate Resources and S151,Revenue,Employee Related Schemes,Healthcare
http://statistics.data.gov.uk/search?search=E07000114,Thanet District Council,23/01/2018,446455,205.00,,Dover Counselling Centre,DOV014,Operational Services,Revenue,Employee Related Schemes,Healthcare
http://statistics.data.gov.uk/search?search=E07000114,Thanet District Council,23/01/2018,446737,42803.82,,Dover District Council,DOV001,Corporate Resources and S151,Revenue,Services,Various Cats-Public Sector
http://statistics.data.gov.uk/search?search=E07000114,Thanet District Council,23/01/2018,446718,1615.63,,Electoral Reform Services,ELE010,Corporate Governance,Revenue,Communications & Computing,Facilities And Mangement Serv
http://statistics.data.gov.uk/search?search=E07000114,Thanet District Council,23/01/2018,446718,3575.76,,Electoral Reform Services,ELE010,Corporate Governance,Revenue,"Print, Stat And Gen Off Exps",Facilities And Mangement Serv
http://statistics.data.gov.uk/search?search=E07000114,Thanet District Council,23/01/2018,446719,274.86,,Electoral Reform Services,ELE010,Corporate Governance,Revenue,Communications & Computing,Facilities And Mangement Serv
http://statistics.data.gov.uk/search?search=E07000114,Thanet District Council,23/01/2018,446719,926.80,,Electoral Reform Services,ELE010,Corporate Governance,Revenue,"Print, Stat And Gen Off Exps",Facilities And Mangement Serv
http://statistics.data.gov.uk/search?search=E07000114,Thanet District Council,23/01/2018,446953,827.20,,Electoral Reform Services,ELE010,Corporate Governance,Revenue,"Print, Stat And Gen Off Exps",Facilities And Mangement Serv
http://statistics.data.gov.uk/search?search=E07000114,Thanet District Council,23/01/2018,447164,764.14,,Family Mosaic Housing,FAM001,Corporate Resources and S151,Balance Sheet,Capital Exp-Non Council Assets,Housing Management
http://statistics.data.gov.uk/search?search=E07000114,Thanet District Council,23/01/2018,447168,2665.72,,Family Mosaic Housing,FAM001,Corporate Resources and S151,Balance Sheet,Capital Exp-Non Council Assets,Housing Management
http://statistics.data.gov.uk/search?search=E07000114,Thanet District Council,23/01/2018,447170,1238.17,,Family Mosaic Housing,FAM001,Corporate Resources and S151,Balance Sheet,Capital Exp-Non Council Assets,Housing Management
http://statistics.data.gov.uk/search?search=E07000114,Thanet District Council,23/01/2018,447173,520.00,,Family Mosaic Housing,FAM001,Corporate Resources and S151,Balance Sheet,Capital Exp-Non Council Assets,Housing Management
http://statistics.data.gov.uk/search?search=E07000114,Thanet District Council,23/01/2018,446902,694.49,,Farrer Barnes Limited,FAR012,Corporate Resources and S151,Revenue,Agency Staff,Human Resources
http://statistics.data.gov.uk/search?search=E07000114,Thanet District Council,23/01/2018,446903,643.69,,Farrer Barnes Limited,FAR012,Corporate Resources and S151,Revenue,Agency Staff,Human Resources
http://statistics.data.gov.uk/search?search=E07000114,Thanet District Council,23/01/2018,446501,756.40,,Freight Transport Association,FRE007,Operational Services,Revenue,Direct Transport Costs,Human Resources
http://statistics.data.gov.uk/search?search=E07000114,Thanet District Council,23/01/2018,447003,350.00,,Gayle Ashley,ASH013,Community Services,Revenue,Services,Legal Services
http://statistics.data.gov.uk/search?search=E07000114,Thanet District Council,23/01/2018,447074,993.25,,Hays Specialist Recruitment Ltd,HAY020,Community Services,Revenue,Agency Staff,Human Resources
http://statistics.data.gov.uk/search?search=E07000114,Thanet District Council,23/01/2018,446909,1850.00,,Herrington Consulting Ltd,HER012,Corporate Resources and S151,Balance Sheet,Infrastructure,Consultancy
http://statistics.data.gov.uk/search?search=E07000114,Thanet District Council,23/01/2018,446764,650.00,,Hi Way Services Ltd,HIW002,Operational Services,Revenue,"Repairs,  Alter & Mtce - Build",Highway Equipment And Material
http://statistics.data.gov.uk/search?search=E07000114,Thanet District Council,23/01/2018,446765,650.00,,Hi Way Services Ltd,HIW002,Operational Services,Revenue,"Repairs,  Alter & Mtce - Build",Highway Equipment And Material
http://statistics.data.gov.uk/search?search=E07000114,Thanet District Council,23/01/2018,446777,650.00,,Hi Way Services Ltd,HIW002,Operational Services,Revenue,"Repairs,  Alter & Mtce - Build",Highway Equipment And Material
http://statistics.data.gov.uk/search?search=E07000114,Thanet District Council,23/01/2018,446725,391.01,,Hr Go (Kent) Ltd,HRG001,Operational Services,Revenue,Agency Staff,Human Resources
http://statistics.data.gov.uk/search?search=E07000114,Thanet District Council,23/01/2018,446726,391.83,,Hr Go (Kent) Ltd,HRG001,Operational Services,Revenue,Agency Staff,Human Resources
http://statistics.data.gov.uk/search?search=E07000114,Thanet District Council,23/01/2018,446727,823.26,,Hr Go (Kent) Ltd,HRG001,Operational Services,Revenue,Agency Staff,Human Resources
http://statistics.data.gov.uk/search?search=E07000114,Thanet District Council,23/01/2018,446729,779.10,,Hr Go (Kent) Ltd,HRG001,Operational Services,Revenue,Agency Staff,Human Resources
http://statistics.data.gov.uk/search?search=E07000114,Thanet District Council,23/01/2018,446769,628.75,,Hr Go (Kent) Ltd,HRG001,Operational Services,Revenue,Agency Staff,Human Resources
http://statistics.data.gov.uk/search?search=E07000114,Thanet District Council,23/01/2018,446996,4386.28,,Hr Go (Kent) Ltd,HRG001,Operational Services,Revenue,Agency Staff,Human Resources
http://statistics.data.gov.uk/search?search=E07000114,Thanet District Council,23/01/2018,447125,836.30,,Hr Go (Kent) Ltd,HRG001,Operational Services,Revenue,Agency Staff,Human Resources
http://statistics.data.gov.uk/search?search=E07000114,Thanet District Council,23/01/2018,447162,984.50,,Hubbard & Houghton Construction Ltd,HUB003,Corporate Resources and S151,Balance Sheet,Capital Exp-Non Council Assets,Grants
http://statistics.data.gov.uk/search?search=E07000114,Thanet District Council,23/01/2018,446649,7350.13,,Kent County Council (Kcs),KCC003,Corporate Governance,Revenue,Energy Costs,Facilities And Mangement Serv
http://statistics.data.gov.uk/search?search=E07000114,Thanet District Council,23/01/2018,446650,9268.62,,Kent County Council (Kcs),KCC003,Operational Services,Revenue,Energy Costs,Facilities And Mangement Serv
http://statistics.data.gov.uk/search?search=E07000114,Thanet District Council,23/01/2018,446652,5575.02,,Kent County Council (Kcs),KCC003,Operational Services,Revenue,Energy Costs,Facilities And Mangement Serv
http://statistics.data.gov.uk/search?search=E07000114,Thanet District Council,23/01/2018,446656,21528.88,,Kent County Council (Kcs),KCC003,Corporate Governance,Revenue,Energy Costs,Facilities And Mangement Serv
http://statistics.data.gov.uk/search?search=E07000114,Thanet District Council,23/01/2018,447097,1138.96,,Kent County Council (Kcs),KCC003,Corporate Governance,Revenue,Energy Costs,Facilities And Mangement Serv
http://statistics.data.gov.uk/search?search=E07000114,Thanet District Council,23/01/2018,446910,6320.00,,Kingdom Security Limited,KIN039,Operational Services,Revenue,Services,Street And Traffic Management
http://statistics.data.gov.uk/search?search=E07000114,Thanet District Council,23/01/2018,438645,2423.75,,Main Man Supplies Ltd,MAI001,Operational Services,Revenue,"Clothes, Uniforms & Laundry",Clothing
http://statistics.data.gov.uk/search?search=E07000114,Thanet District Council,23/01/2018,447197,64.30,,Main Man Supplies Ltd,MAI001,Operational Services,Revenue,"Clothes, Uniforms & Laundry",Clothing
http://statistics.data.gov.uk/search?search=E07000114,Thanet District Council,23/01/2018,446895,1817.45,,Mears Ltd,MEA003,Community Services,Revenue,"Repairs,  Alter & Mtce - Build",Construction-Repair And Maint
http://statistics.data.gov.uk/search?search=E07000114,Thanet District Council,23/01/2018,446896,2784.31,,Mears Ltd,MEA003,Community Services,Revenue,"Repairs,  Alter & Mtce - Build",Construction-Repair And Maint
http://statistics.data.gov.uk/search?search=E07000114,Thanet District Council,23/01/2018,446897,98240.85,,Mears Ltd,MEA003,Community Services,Revenue,"Repairs,  Alter & Mtce - Build",Construction-Repair And Maint
http://statistics.data.gov.uk/search?search=E07000114,Thanet District Council,23/01/2018,447099,1815.00,,Mears Ltd,MEA003,Corporate Resources and S151,Balance Sheet,Council Dwellings,Construction-Repair And Maint
http://statistics.data.gov.uk/search?search=E07000114,Thanet District Council,23/01/2018,446711,1200.00,,Michael Page Int Recruitment Ltd,PAG008,East Kent Shared Services,Revenue,Agency Staff,Human Resources
http://statistics.data.gov.uk/search?search=E07000114,Thanet District Council,23/01/2018,446799,1200.00,,Michael Page Int Recruitment Ltd,PAG008,East Kent Shared Services,Revenue,Agency Staff,Human Resources
http://statistics.data.gov.uk/search?search=E07000114,Thanet District Council,23/01/2018,447103,32716.00,,Northgate Public Services (Uk) Ltd,NOR018,Corporate Resources and S151,Revenue,Communications & Computing,ICT
http://statistics.data.gov.uk/search?search=E07000114,Thanet District Council,23/01/2018,447108,864.69,,Northgate Public Services (Uk) Ltd,NOR018,Community Services,Revenue,Communications & Computing,ICT
http://statistics.data.gov.uk/search?search=E07000114,Thanet District Council,23/01/2018,446527,314.34,,Npower Limited,NPO001,Corporate Governance,Revenue,Energy Costs,Utilities
http://statistics.data.gov.uk/search?search=E07000114,Thanet District Council,23/01/2018,446956,542.47,,Page Plan Prints,PAG009,Community Services,Revenue,"Print, Stat And Gen Off Exps",Facilities And Mangement Serv
http://statistics.data.gov.uk/search?search=E07000114,Thanet District Council,23/01/2018,447178,1720.00,,Panache Audio Systems,PAN004,Operational Services,Revenue,Services,Facilities And Mangement Serv
http://statistics.data.gov.uk/search?search=E07000114,Thanet District Council,23/01/2018,446204,142999.00,,Paramount Ind Property Services Llp,PAR074,Community Services,Revenue,Services,Housing Management
http://statistics.data.gov.uk/search?search=E07000114,Thanet District Council,23/01/2018,446058,312.00,,Pass Driving School Ltd,PAS003,Corporate Resources and S151,Revenue,Training,Human Resources
http://statistics.data.gov.uk/search?search=E07000114,Thanet District Council,23/01/2018,447192,409.81,,Peleman Industries Ltd,PEL002,Corporate Governance,Revenue,"Print, Stat And Gen Off Exps",Stationery
http://statistics.data.gov.uk/search?search=E07000114,Thanet District Council,23/01/2018,446255,665.00,,Schellenburg Guesthouse,SCH008,Community Services,Revenue,Services,Housing Management
http://statistics.data.gov.uk/search?search=E07000114,Thanet District Council,23/01/2018,446998,486.37,,Scottish Water Business Stream Ltd,SCO019,Operational Services,Revenue,Water Services,Utilities
http://statistics.data.gov.uk/search?search=E07000114,Thanet District Council,23/01/2018,447009,2196.69,,Scottish Water Business Stream Ltd,SCO019,Operational Services,Revenue,Water Services,Utilities
http://statistics.data.gov.uk/search?search=E07000114,Thanet District Council,23/01/2018,447016,1073.25,,Scottish Water Business Stream Ltd,SCO019,Operational Services,Revenue,Water Services,Utilities
http://statistics.data.gov.uk/search?search=E07000114,Thanet District Council,23/01/2018,447147,1391.72,,Scottish Water Business Stream Ltd,SCO019,Operational Services,Revenue,Water Services,Utilities
http://statistics.data.gov.uk/search?search=E07000114,Thanet District Council,23/01/2018,446665,1278.00,,Sellick Partnership Ltd,SEL011,Corporate Governance,Revenue,Services,Human Resources
http://statistics.data.gov.uk/search?search=E07000114,Thanet District Council,23/01/2018,447106,2841.31,,Shepway District Council,SHE001,Operational Services,Revenue,Services,Various Cats-Public Sector
http://statistics.data.gov.uk/search?search=E07000114,Thanet District Council,23/01/2018,443830,931.98,,Southern Electric,SEL007,Operational Services,Revenue,Energy Costs,Utilities
http://statistics.data.gov.uk/search?search=E07000114,Thanet District Council,23/01/2018,444664,266.53,,Southern Electric,SEL007,Operational Services,Revenue,Energy Costs,Utilities
http://statistics.data.gov.uk/search?search=E07000114,Thanet District Council,23/01/2018,446973,-931.98,,Southern Electric,SEL007,Operational Services,Revenue,Energy Costs,Utilities
http://statistics.data.gov.uk/search?search=E07000114,Thanet District Council,23/01/2018,446975,-266.53,,Southern Electric,SEL007,Operational Services,Revenue,Energy Costs,Utilities
http://statistics.data.gov.uk/search?search=E07000114,Thanet District Council,23/01/2018,446986,18933.63,,Southern Electric,SEL007,Community Services,Revenue,Energy Costs,Utilities
http://statistics.data.gov.uk/search?search=E07000114,Thanet District Council,23/01/2018,447017,677.62,,Southern Electric,SEL007,Operational Services,Revenue,Energy Costs,Utilities
http://statistics.data.gov.uk/search?search=E07000114,Thanet District Council,23/01/2018,447154,2973.59,,Southern Electric,SEL007,Community Services,Revenue,Energy Costs,Utilities
http://statistics.data.gov.uk/search?search=E07000114,Thanet District Council,23/01/2018,446498,1095.25,,Studio Sam Causer Ltd,STU015,Corporate Resources and S151,Balance Sheet,Community Assets,Construction-Repair And Maint
http://statistics.data.gov.uk/search?search=E07000114,Thanet District Council,23/01/2018,446506,1397.93,,The Glenwood Hotel,GLE007,Community Services,Revenue,Services,Housing Management
http://statistics.data.gov.uk/search?search=E07000114,Thanet District Council,23/01/2018,446507,3652.11,,The Glenwood Hotel,GLE007,Community Services,Revenue,Services,Housing Management
http://statistics.data.gov.uk/search?search=E07000114,Thanet District Council,23/01/2018,446900,361.99,,Total Supplies Ltd,TOT009,Corporate Resources and S151,Revenue,Cleaning & Domestic Supplies,Cleaning And Janitorial
http://statistics.data.gov.uk/search?search=E07000114,Thanet District Council,23/01/2018,447169,10318.10,,Trueden Disability Adaptations Ltd,TRU012,Corporate Resources and S151,Balance Sheet,Capital Exp-Non Council Assets,Grants
http://statistics.data.gov.uk/search?search=E07000114,Thanet District Council,23/01/2018,446603,1218.75,,Universeal (Uk) Limited,UNI039,Operational Services,Revenue,"Equip, Furniture And Materials",Environmental Services
http://statistics.data.gov.uk/search?search=E07000114,Thanet District Council,23/01/2018,446962,420.00,,W Brazil & Bros,BRA001,Corporate Resources and S151,Balance Sheet,Repairs And Mtce Holding A/C,Environmental Services
http://statistics.data.gov.uk/search?search=E07000114,Thanet District Council,25/01/2018,445861,434.80,,All Access Ltd,ALL031,Corporate Resources and S151,Balance Sheet,Rechargeable Works,Building Construction Material
http://statistics.data.gov.uk/search?search=E07000114,Thanet District Council,25/01/2018,446458,5319.25,,Canterbury Christ Church University,CAN006,Corporate Governance,Revenue,Energy Costs,Various Categories
http://statistics.data.gov.uk/search?search=E07000114,Thanet District Council,25/01/2018,446733,19878.33,,Canterbury City Council,CAN004,East Kent Shared Services,Revenue,Grants & Subscriptions,Various Cats-Public Sector
http://statistics.data.gov.uk/search?search=E07000114,Thanet District Council,25/01/2018,446666,750.00,,Caxtons Commercial Ltd,CAX006,Corporate Governance,Revenue,Services,Consultancy
http://statistics.data.gov.uk/search?search=E07000114,Thanet District Council,25/01/2018,446610,2100.40,,Certas Energy Uk Ltd,CER005,Operational Services,Revenue,"Equip, Furniture And Materials",Vehicle Management
http://statistics.data.gov.uk/search?search=E07000114,Thanet District Council,25/01/2018,446673,1696.00,,Cobalt Consulting (Uk) Limited,COB004,Corporate Governance,Revenue,Agency Staff,Human Resources
http://statistics.data.gov.uk/search?search=E07000114,Thanet District Council,25/01/2018,447289,100840.93,,Dcb (Kent) Ltd,DCB001,Corporate Resources and S151,Balance Sheet,Repairs And Mtce Holding A/C,Construction-Repair And Maint
http://statistics.data.gov.uk/search?search=E07000114,Thanet District Council,25/01/2018,447290,23693.98,,Dcb (Kent) Ltd,DCB001,Corporate Resources and S151,Balance Sheet,Repairs And Mtce Holding A/C,Construction-Repair And Maint
http://statistics.data.gov.uk/search?search=E07000114,Thanet District Council,25/01/2018,447291,3552.92,,Dcb (Kent) Ltd,DCB001,Corporate Resources and S151,Balance Sheet,Repairs And Mtce Holding A/C,Construction-Repair And Maint
http://statistics.data.gov.uk/search?search=E07000114,Thanet District Council,25/01/2018,447294,6466.90,,Dcb (Kent) Ltd,DCB001,Corporate Resources and S151,Balance Sheet,Repairs And Mtce Holding A/C,Construction-Repair And Maint
http://statistics.data.gov.uk/search?search=E07000114,Thanet District Council,25/01/2018,446254,398.57,,Dennis Eagle Limited,TER011,Operational Services,Revenue,Direct Transport Costs,Vehicle Management
http://statistics.data.gov.uk/search?search=E07000114,Thanet District Council,25/01/2018,446457,514.29,,Dover Counselling Centre,DOV014,Community Services,Revenue,Employee Related Schemes,Healthcare
http://statistics.data.gov.uk/search?search=E07000114,Thanet District Council,25/01/2018,446715,936.00,,Friends Of Ellington Park,FRI017,Operational Services,Revenue,"Repairs,  Alter & Mtce - Build",Grants
http://statistics.data.gov.uk/search?search=E07000114,Thanet District Council,25/01/2018,446235,337.06,,Hands On Suppliers Ltd,HAN007,Operational Services,Revenue,"Equip, Furniture And Materials",Clothing
http://statistics.data.gov.uk/search?search=E07000114,Thanet District Council,25/01/2018,446236,308.80,,Hands On Suppliers Ltd,HAN007,Operational Services,Revenue,"Equip, Furniture And Materials",Clothing
http://statistics.data.gov.uk/search?search=E07000114,Thanet District Council,25/01/2018,446694,252.80,,Haynes Of Maidstone Ltd,HAY008,Operational Services,Revenue,Direct Transport Costs,Vehicle Management
http://statistics.data.gov.uk/search?search=E07000114,Thanet District Council,25/01/2018,446241,727.73,,Hr Go (Kent) Ltd,HRG001,Operational Services,Revenue,Agency Staff,Human Resources
http://statistics.data.gov.uk/search?search=E07000114,Thanet District Council,25/01/2018,446272,765.67,,Hr Go (Kent) Ltd,HRG001,Operational Services,Revenue,Agency Staff,Human Resources
http://statistics.data.gov.uk/search?search=E07000114,Thanet District Council,25/01/2018,446275,5940.09,,Hr Go (Kent) Ltd,HRG001,Operational Services,Revenue,Agency Staff,Human Resources
http://statistics.data.gov.uk/search?search=E07000114,Thanet District Council,25/01/2018,445935,406.03,,Kent County Council (Kcs),KCC003,Corporate Governance,Revenue,"Equip, Furniture And Materials",Facilities And Mangement Serv
http://statistics.data.gov.uk/search?search=E07000114,Thanet District Council,25/01/2018,446542,1079.72,,Lobster Van Hire Ltd,LOB001,Operational Services,Revenue,Cont Hire & Operating Lease,Vehicle Management
http://statistics.data.gov.uk/search?search=E07000114,Thanet District Council,25/01/2018,445992,2375.00,,Medway Insulations Limited,MED006,Corporate Resources and S151,Balance Sheet,Repairs And Mtce Holding A/C,Environmental Services
http://statistics.data.gov.uk/search?search=E07000114,Thanet District Council,25/01/2018,447301,650.00,,Mr Timothy Straker,STR022,Corporate Governance,Revenue,Services,Legal Services
http://statistics.data.gov.uk/search?search=E07000114,Thanet District Council,25/01/2018,446710,575.04,,Ohuk Limited,OHU001,Operational Services,Revenue,Agency Staff,Human Resources
http://statistics.data.gov.uk/search?search=E07000114,Thanet District Council,25/01/2018,447082,559.00,,P & R Installation Company Limited,PRI035,Corporate Resources and S151,Balance Sheet,Repairs And Mtce Holding A/C,Building Construction Material
http://statistics.data.gov.uk/search?search=E07000114,Thanet District Council,25/01/2018,446504,910.80,,Parkeon Limited,PAR063,Corporate Governance,Revenue,"Equip, Furniture And Materials",Street And Traffic Management
http://statistics.data.gov.uk/search?search=E07000114,Thanet District Council,25/01/2018,446721,1117.00,,Peer 1 (Uk) Limited,PEE003,East Kent Shared Services,Revenue,Communications & Computing,ICT
http://statistics.data.gov.uk/search?search=E07000114,Thanet District Council,25/01/2018,442910,450.00,,Phillips Blinds,PHI002,Operational Services,Revenue,"Repairs,  Alter & Mtce - Build",Facilities And Mangement Serv
http://statistics.data.gov.uk/search?search=E07000114,Thanet District Council,25/01/2018,442911,1398.00,,Phillips Blinds,PHI002,Corporate Governance,Revenue,"Repairs,  Alter & Mtce - Build",Facilities And Mangement Serv
http://statistics.data.gov.uk/search?search=E07000114,Thanet District Council,25/01/2018,446945,300.00,,Phoenix Software Ltd,PHO002,East Kent Shared Services,Revenue,Communications & Computing,ICT
http://statistics.data.gov.uk/search?search=E07000114,Thanet District Council,25/01/2018,446499,576.56,,Profile Security Services Limited,PRO018,Operational Services,Revenue,Services,Facilities And Mangement Serv
http://statistics.data.gov.uk/search?search=E07000114,Thanet District Council,25/01/2018,446222,721.50,,R S S (Wessex) Limited,RSS002,Operational Services,Revenue,Agency Staff,Human Resources
http://statistics.data.gov.uk/search?search=E07000114,Thanet District Council,25/01/2018,446659,721.50,,R S S (Wessex) Limited,RSS002,Operational Services,Revenue,Agency Staff,Human Resources
http://statistics.data.gov.uk/search?search=E07000114,Thanet District Council,25/01/2018,446660,630.00,,R S S (Wessex) Limited,RSS002,Operational Services,Revenue,Agency Staff,Human Resources
http://statistics.data.gov.uk/search?search=E07000114,Thanet District Council,25/01/2018,446704,721.50,,R S S (Wessex) Limited,RSS002,Operational Services,Revenue,Agency Staff,Human Resources
http://statistics.data.gov.uk/search?search=E07000114,Thanet District Council,25/01/2018,446592,3443.80,,Shoreline Surveys Limited,SHO001,Operational Services,Revenue,"Repairs,  Alter & Mtce - Build",Maritime Services
http://statistics.data.gov.uk/search?search=E07000114,Thanet District Council,25/01/2018,446697,408.00,,The Duncan & Graham Partnership Ltd,DUN015,Corporate Resources and S151,Balance Sheet,Council Dwellings,Consultancy
http://statistics.data.gov.uk/search?search=E07000114,Thanet District Council,25/01/2018,446606,1925.00,,Townsends Engineering Ltd,TOW016,Corporate Resources and S151,Balance Sheet,Rechargeable Works,Construction-Repair And Maint
http://statistics.data.gov.uk/search?search=E07000114,Thanet District Council,25/01/2018,446607,7875.00,,Townsends Engineering Ltd,TOW016,Operational Services,Revenue,"Repairs,  Alter & Mtce - Build",Construction-Repair And Maint
http://statistics.data.gov.uk/search?search=E07000114,Thanet District Council,25/01/2018,446709,2048.00,,Townsends Engineering Ltd,TOW016,Operational Services,Revenue,"Repairs,  Alter & Mtce - Build",Construction-Repair And Maint
http://statistics.data.gov.uk/search?search=E07000114,Thanet District Council,25/01/2018,446251,34856.19,,Trafalgar Cleaning Equipment Ltd,TRA033,Corporate Resources and S151,Balance Sheet,Plant And Equipment,Cleaning And Janitorial
http://statistics.data.gov.uk/search?search=E07000114,Thanet District Council,25/01/2018,446618,1720.66,,Veolia Es (Uk) Ltd,VEO001,Operational Services,Revenue,Cleaning & Domestic Supplies,Environmental Services
http://statistics.data.gov.uk/search?search=E07000114,Thanet District Council,25/01/2018,446591,2000.00,,Woodley Coles  Llp,WOO008,Operational Services,Revenue,Services,Construction-Repair And Maint
http://statistics.data.gov.uk/search?search=E07000114,Thanet District Council,26/01/2018,PC10357,79.95,,123 Reg,N/A,Operational Services,Revenue,Communications & Computing,ICT
http://statistics.data.gov.uk/search?search=E07000114,Thanet District Council,26/01/2018,PC10366,-13.29,,Amazon,N/A,East Kent Shared Services,Revenue,"Equip, Furniture And Materials",Stationery
http://statistics.data.gov.uk/search?search=E07000114,Thanet District Council,26/01/2018,PC10367,-9.30,,Amazon,N/A,East Kent Shared Services,Revenue,"Equip, Furniture And Materials",Stationery
http://statistics.data.gov.uk/search?search=E07000114,Thanet District Council,26/01/2018,PC10368,-3.99,,Amazon,N/A,East Kent Shared Services,Revenue,"Equip, Furniture And Materials",Stationery
http://statistics.data.gov.uk/search?search=E07000114,Thanet District Council,26/01/2018,PC10348,64.86,,Amazon Svcs,N/A,Corporate Governance,Revenue,"Print, Stat And Gen Off Exps",Stationery
http://statistics.data.gov.uk/search?search=E07000114,Thanet District Council,26/01/2018,PC10372,24.99,4.17,Amazon Svcs EU-UK,N/A,Operational Services,Revenue,"Clothes, Uniforms & Laundry",Stationery
http://statistics.data.gov.uk/search?search=E07000114,Thanet District Council,26/01/2018,PC10371,26.70,4.45,Amazon UK Marketplace,N/A,Operational Services,Revenue,"Equip, Furniture And Materials",Stationery
http://statistics.data.gov.uk/search?search=E07000114,Thanet District Council,26/01/2018,PC10373,13.28,,Amazon UK Marketplace,N/A,Operational Services,Revenue,"Equip, Furniture And Materials",Stationery
http://statistics.data.gov.uk/search?search=E07000114,Thanet District Council,26/01/2018,PC10393,13.27,,Amazon UK Marketplace,N/A,Operational Services,Revenue,"Equip, Furniture And Materials",Stationery
http://statistics.data.gov.uk/search?search=E07000114,Thanet District Council,26/01/2018,PC10324,111.99,,Amazon UK Retail,N/A,Corporate Governance,Revenue,"Print, Stat And Gen Off Exps",Stationery
http://statistics.data.gov.uk/search?search=E07000114,Thanet District Council,26/01/2018,PC10379,42.97,,Amazon.co.uk,N/A,Corporate Governance,Revenue,"Print, Stat And Gen Off Exps",Stationery
http://statistics.data.gov.uk/search?search=E07000114,Thanet District Council,26/01/2018,PC10375,54.99,9.17,Argos Retail Group,N/A,Operational Services,Revenue,"Equip, Furniture And Materials",Domestic Goods
http://statistics.data.gov.uk/search?search=E07000114,Thanet District Council,26/01/2018,PC10355,14.97,,BC Basecamp,N/A,Community Services,Revenue,Communications & Computing,Financial Services
http://statistics.data.gov.uk/search?search=E07000114,Thanet District Council,26/01/2018,PC10343,31.24,,Booker Limited,N/A,Community Services,Revenue,Catering,Catering
http://statistics.data.gov.uk/search?search=E07000114,Thanet District Council,26/01/2018,PC10329,26.27,,Booker Limited Broadstairs,N/A,Corporate Governance,Revenue,Catering,Catering
http://statistics.data.gov.uk/search?search=E07000114,Thanet District Council,26/01/2018,PC10330,70.03,,Booker Limited Broadstairs,N/A,Corporate Governance,Revenue,Catering,Catering
http://statistics.data.gov.uk/search?search=E07000114,Thanet District Council,26/01/2018,445374,15623.68,,Burgess Marine Ltd In Administration,BUR017,Operational Services,Revenue,"Repairs,  Alter & Mtce - Build",Maritime Services
http://statistics.data.gov.uk/search?search=E07000114,Thanet District Council,26/01/2018,447523,-15623.68,,Burgess Marine Ltd In Administration,BUR017,Operational Services,Revenue,"Repairs,  Alter & Mtce - Build",Maritime Services
http://statistics.data.gov.uk/search?search=E07000114,Thanet District Council,26/01/2018,PC10316,177.47,,Cartridge Save,N/A,Operational Services,Revenue,"Print, Stat And Gen Off Exps",Stationery
http://statistics.data.gov.uk/search?search=E07000114,Thanet District Council,26/01/2018,PC10377,378.00,,CIEH,N/A,Community Services,Revenue,Expenses,Human Resources
http://statistics.data.gov.uk/search?search=E07000114,Thanet District Council,26/01/2018,PC10335,31.76,,Co-Op Group Petrol,N/A,Operational Services,Revenue,Direct Transport Costs,Vehicle Management
http://statistics.data.gov.uk/search?search=E07000114,Thanet District Council,26/01/2018,PC10322,121.00,,County Court Canterbury,N/A,Community Services,Revenue,Services,Various Cats-Public Sector
http://statistics.data.gov.uk/search?search=E07000114,Thanet District Council,26/01/2018,PC10327,121.00,,County Court Canterbury,N/A,Community Services,Revenue,Services,Various Cats-Public Sector
http://statistics.data.gov.uk/search?search=E07000114,Thanet District Council,26/01/2018,PC10346,121.00,,County Court Canterbury,N/A,Community Services,Revenue,Services,Various Cats-Public Sector
http://statistics.data.gov.uk/search?search=E07000114,Thanet District Council,26/01/2018,PC10356,70.68,,Dell Product,N/A,Operational Services,Revenue,"Print, Stat And Gen Off Exps",ICT
http://statistics.data.gov.uk/search?search=E07000114,Thanet District Council,26/01/2018,PC10360,70.68,,Dell Product,N/A,Operational Services,Revenue,"Print, Stat And Gen Off Exps",ICT
http://statistics.data.gov.uk/search?search=E07000114,Thanet District Council,26/01/2018,PC10342,335.76,55.96,Easyhotel.Com - Birmingham,N/A,Community Services,Revenue,Public Transport,Human Resources
http://statistics.data.gov.uk/search?search=E07000114,Thanet District Council,26/01/2018,PC10302,60.00,,EB Homeless Reduction,N/A,Corporate Governance,Revenue,Expenses,Human Resources
http://statistics.data.gov.uk/search?search=E07000114,Thanet District Council,26/01/2018,PC10320,145.00,,EB: Coastal Futures 2018,N/A,Operational Services,Revenue,Expenses,Human Resources
http://statistics.data.gov.uk/search?search=E07000114,Thanet District Council,26/01/2018,PC10345,16.67,,Excel London,N/A,Operational Services,Revenue,Miscellaneous Expenses,Human Resources
http://statistics.data.gov.uk/search?search=E07000114,Thanet District Council,26/01/2018,PC10349,144.95,,Facebook Ireland Ltd,N/A,Corporate Resources and S151,Revenue,Miscellaneous Expenses,Facilities And Management
http://statistics.data.gov.uk/search?search=E07000114,Thanet District Council,26/01/2018,PC10350,3.80,,Facebook Ireland Ltd,N/A,Corporate Resources and S151,Revenue,Miscellaneous Expenses,Facilities And Management
http://statistics.data.gov.uk/search?search=E07000114,Thanet District Council,26/01/2018,PC10370,102.55,,Landmark Trading,N/A,Operational Services,Revenue,"Equip, Furniture And Materials",Horticultural
http://statistics.data.gov.uk/search?search=E07000114,Thanet District Council,26/01/2018,PC10365,28.70,,London & South Eastern,N/A,Operational Services,Revenue,Public Transport,Human Resources
http://statistics.data.gov.uk/search?search=E07000114,Thanet District Council,26/01/2018,PC10369,19.99,3.34,Maplin,N/A,Operational Services,Revenue,Fixtures & Fittings,ICT
http://statistics.data.gov.uk/search?search=E07000114,Thanet District Council,26/01/2018,PC10331,60.90,,Parking Eye,N/A,Operational Services,Revenue,Direct Transport Costs,Street and Traffic Management
http://statistics.data.gov.uk/search?search=E07000114,Thanet District Council,26/01/2018,PC10340,50.50,,Petals Margate,N/A,Chief Executive,Revenue,Expenses,Horticultural
http://statistics.data.gov.uk/search?search=E07000114,Thanet District Council,26/01/2018,PC10321,325.00,,Possessionclaim.Gov,N/A,Community Services,Revenue,Services,Various Cats-Public Sector
http://statistics.data.gov.uk/search?search=E07000114,Thanet District Council,26/01/2018,PC10326,325.00,,Possessionclaim.Gov,N/A,Community Services,Revenue,Services,Various Cats-Public Sector
http://statistics.data.gov.uk/search?search=E07000114,Thanet District Council,26/01/2018,PC10333,325.00,,Possessionclaim.Gov,N/A,Community Services,Revenue,Services,Various Cats-Public Sector
http://statistics.data.gov.uk/search?search=E07000114,Thanet District Council,26/01/2018,PC10336,121.00,,Possessionclaim.Gov,N/A,Community Services,Revenue,Services,Various Cats-Public Sector
http://statistics.data.gov.uk/search?search=E07000114,Thanet District Council,26/01/2018,PC10347,325.00,,Possessionclaim.Gov,N/A,Community Services,Revenue,Services,Various Cats-Public Sector
http://statistics.data.gov.uk/search?search=E07000114,Thanet District Council,26/01/2018,PC10362,325.00,,Possessionclaim.Gov,N/A,Community Services,Revenue,Services,Various Cats-Public Sector
http://statistics.data.gov.uk/search?search=E07000114,Thanet District Council,26/01/2018,PC10394,121.00,,Possessionclaim.Gov,N/A,Community Services,Revenue,Services,Various Cats-Public Sector
http://statistics.data.gov.uk/search?search=E07000114,Thanet District Council,26/01/2018,PC10311,90.00,,Quarterman Windscreens UK Ltd,N/A,Operational Services,Revenue,Direct Transport Costs,Vehicle Management
http://statistics.data.gov.uk/search?search=E07000114,Thanet District Council,26/01/2018,PC10328,298.80,,Quarterman Windscreens UK Ltd,N/A,Operational Services,Revenue,Direct Transport Costs,Vehicle Management
http://statistics.data.gov.uk/search?search=E07000114,Thanet District Council,26/01/2018,PC10310,-26.00,,RIBA Enterprises Ltd,N/A,Operational Services,Revenue,"Print, Stat And Gen Off Exps",Stationery
http://statistics.data.gov.uk/search?search=E07000114,Thanet District Council,26/01/2018,PC10323,45.10,,RIBA Enterprises Ltd,N/A,Operational Services,Revenue,"Print, Stat And Gen Off Exps",Stationery
http://statistics.data.gov.uk/search?search=E07000114,Thanet District Council,26/01/2018,PC10358,139.00,,Shutterstock,N/A,Corporate Resources and S151,Revenue,Communications & Computing,Facilities And Management
http://statistics.data.gov.uk/search?search=E07000114,Thanet District Council,26/01/2018,PC10315,83.90,,Southeastern Web,N/A,Corporate Resources and S151,Revenue,Public Transport,Human Resources
http://statistics.data.gov.uk/search?search=E07000114,Thanet District Council,26/01/2018,PC10325,310.80,,Southeastern Web,N/A,Corporate Governance,Revenue,Public Transport,Human Resources
http://statistics.data.gov.uk/search?search=E07000114,Thanet District Council,26/01/2018,PC10332,23.90,,Southeastern Web,N/A,Corporate Governance,Revenue,Expenses,Human Resources
http://statistics.data.gov.uk/search?search=E07000114,Thanet District Council,26/01/2018,PC10339,101.80,,Southeastern Web,N/A,Corporate Governance,Revenue,Public Transport,Human Resources
http://statistics.data.gov.uk/search?search=E07000114,Thanet District Council,26/01/2018,PC10341,26.30,,Southeastern Web,N/A,Community Services,Revenue,Public Transport,Human Resources
http://statistics.data.gov.uk/search?search=E07000114,Thanet District Council,26/01/2018,PC10374,118.70,,Southeastern Web,N/A,Community Services,Revenue,Public Transport,Human Resources
http://statistics.data.gov.uk/search?search=E07000114,Thanet District Council,26/01/2018,PC10376,77.50,,Southeastern Web,N/A,Community Services,Revenue,Public Transport,Human Resources
http://statistics.data.gov.uk/search?search=E07000114,Thanet District Council,26/01/2018,PC10380,164.00,,Southeastern Web,N/A,Community Services,Revenue,Public Transport,Human Resources
http://statistics.data.gov.uk/search?search=E07000114,Thanet District Council,26/01/2018,PC10337,20.83,,Tesco PFS,N/A,Corporate Governance,Revenue,Direct Transport Costs,Vehicle Management
http://statistics.data.gov.uk/search?search=E07000114,Thanet District Council,26/01/2018,PC10334,101.00,,The Action Manager Ltd,N/A,Operational Services,Revenue,Services,Financial Services
http://statistics.data.gov.uk/search?search=E07000114,Thanet District Council,26/01/2018,PC10351,5.95,,Twitter Online Ads,N/A,Corporate Resources and S151,Revenue,Miscellaneous Expenses,ICT
http://statistics.data.gov.uk/search?search=E07000114,Thanet District Council,26/01/2018,PC10352,7.72,,Twitter Online Ads,N/A,Corporate Resources and S151,Revenue,Miscellaneous Expenses,ICT
http://statistics.data.gov.uk/search?search=E07000114,Thanet District Council,26/01/2018,PC10353,5.61,,Twitter Online Ads,N/A,Corporate Resources and S151,Revenue,Miscellaneous Expenses,ICT
http://statistics.data.gov.uk/search?search=E07000114,Thanet District Council,26/01/2018,PC10354,7.37,,Twitter Online Ads,N/A,Corporate Resources and S151,Revenue,Miscellaneous Expenses,ICT
http://statistics.data.gov.uk/search?search=E07000114,Thanet District Council,26/01/2018,PC10359,6.75,,Twitter Online Ads,N/A,Corporate Resources and S151,Revenue,Miscellaneous Expenses,ICT
http://statistics.data.gov.uk/search?search=E07000114,Thanet District Council,26/01/2018,PC10338,269.40,,Virgin Trains,N/A,Corporate Governance,Revenue,Public Transport,Human Resources
http://statistics.data.gov.uk/search?search=E07000114,Thanet District Council,30/01/2018,447129,254.56,,Acoustic Arrangements Limited,ACC011,Operational Services,Revenue,"Repairs,  Alter & Mtce - Build",Arts And Leisure Services
http://statistics.data.gov.uk/search?search=E07000114,Thanet District Council,30/01/2018,447077,896.00,,Albion Fencing&Construction Kent Ltd,ALB005,Operational Services,Revenue,"Equip, Furniture And Materials",Building Construction Material
http://statistics.data.gov.uk/search?search=E07000114,Thanet District Council,30/01/2018,447299,2220.00,,All About Asbestos Limited,ALL044,Operational Services,Revenue,"Repairs,  Alter & Mtce - Build",Environmental Services
http://statistics.data.gov.uk/search?search=E07000114,Thanet District Council,30/01/2018,446624,1161.78,,Ats Euromaster Ltd,ATS002,Operational Services,Revenue,Direct Transport Costs,Vehicle Management
http://statistics.data.gov.uk/search?search=E07000114,Thanet District Council,30/01/2018,447013,309.80,,Bowman Maintenance Contracting,BMC001,Operational Services,Revenue,"Repairs,  Alter & Mtce - Build",Building Construction Material
http://statistics.data.gov.uk/search?search=E07000114,Thanet District Council,30/01/2018,447521,15623.68,,Burgess Marine Ltd In Administration,BUR017,Operational Services,Revenue,"Repairs,  Alter & Mtce - Build",Maritime Services
http://statistics.data.gov.uk/search?search=E07000114,Thanet District Council,30/01/2018,447473,19878.33,,Canterbury City Council,CAN004,East Kent Shared Services,Revenue,Grants & Subscriptions,Various Cats-Public Sector
http://statistics.data.gov.uk/search?search=E07000114,Thanet District Council,30/01/2018,447548,10469.05,,Ccs Media Limited,CCS003,Corporate Resources and S151,Balance Sheet,Plant And Equipment,ICT
http://statistics.data.gov.uk/search?search=E07000114,Thanet District Council,30/01/2018,447143,338.29,,Cdw Limited,CDW002,East Kent Shared Services,Revenue,Communications & Computing,ICT
http://statistics.data.gov.uk/search?search=E07000114,Thanet District Council,30/01/2018,447120,2642.50,,Certas Energy Uk Ltd,CER005,Operational Services,Revenue,"Equip, Furniture And Materials",Vehicle Management
http://statistics.data.gov.uk/search?search=E07000114,Thanet District Council,30/01/2018,444848,-411.35,,Civica Uk Ltd,CIV003,East Kent Shared Services,Revenue,Communications & Computing,ICT
http://statistics.data.gov.uk/search?search=E07000114,Thanet District Council,30/01/2018,447090,400.00,,Civica Uk Ltd,CIV003,East Kent Shared Services,Revenue,Communications & Computing,ICT
http://statistics.data.gov.uk/search?search=E07000114,Thanet District Council,30/01/2018,447142,1250.00,,Civica Uk Ltd,CIV003,East Kent Shared Services,Revenue,Communications & Computing,ICT
http://statistics.data.gov.uk/search?search=E07000114,Thanet District Council,30/01/2018,447117,2200.00,,Dixon Searle Partnership Limited,DIX007,Community Services,Revenue,Services,Consultancy
http://statistics.data.gov.uk/search?search=E07000114,Thanet District Council,30/01/2018,447632,1675.00,,Dr R K Chhabra,CHH001,Operational Services,Revenue,Services,Cemetery And Crematorium
http://statistics.data.gov.uk/search?search=E07000114,Thanet District Council,30/01/2018,447402,317.94,,E.On,EON001,Community Services,Revenue,Energy Costs,Utilities
http://statistics.data.gov.uk/search?search=E07000114,Thanet District Council,30/01/2018,447093,330967.75,,East Kent Housing Ltd,EKH002,Community Services,Revenue,Other Agencies,Housing Management
http://statistics.data.gov.uk/search?search=E07000114,Thanet District Council,30/01/2018,446668,428.57,,Edmundson Electrical Limited,EDM001,Operational Services,Revenue,"Repairs,  Alter & Mtce - Build",Building Construction Material
http://statistics.data.gov.uk/search?search=E07000114,Thanet District Council,30/01/2018,447302,2380.00,,Environment Agency,ENV001,Operational Services,Revenue,Services,Environmental Services
http://statistics.data.gov.uk/search?search=E07000114,Thanet District Council,30/01/2018,447624,858.13,,Family Mosaic Housing,FAM001,Corporate Resources and S151,Balance Sheet,Capital Exp-Non Council Assets,Housing Management
http://statistics.data.gov.uk/search?search=E07000114,Thanet District Council,30/01/2018,446768,910.00,,Florence Court Hotel Ltd,FLO009,Community Services,Revenue,Services,Housing Management
http://statistics.data.gov.uk/search?search=E07000114,Thanet District Council,30/01/2018,446770,1085.00,,Florence Court Hotel Ltd,FLO009,Community Services,Revenue,Services,Housing Management
http://statistics.data.gov.uk/search?search=E07000114,Thanet District Council,30/01/2018,446774,600.00,,Florence Court Hotel Ltd,FLO009,Community Services,Revenue,Services,Housing Management
http://statistics.data.gov.uk/search?search=E07000114,Thanet District Council,30/01/2018,446775,1085.00,,Florence Court Hotel Ltd,FLO009,Community Services,Revenue,Services,Housing Management
http://statistics.data.gov.uk/search?search=E07000114,Thanet District Council,30/01/2018,446776,1860.00,,Florence Court Hotel Ltd,FLO009,Community Services,Revenue,Services,Housing Management
http://statistics.data.gov.uk/search?search=E07000114,Thanet District Council,30/01/2018,447118,1931.64,,G & W Gardner Building Cont Ltd,GAR001,Corporate Resources and S151,Balance Sheet,Other Land And Buildings-Hra,Construction-Repair And Maint
http://statistics.data.gov.uk/search?search=E07000114,Thanet District Council,30/01/2018,447641,1237.84,,Gowling Wlg (Uk) Llp,GOW001,Corporate Resources and S151,Balance Sheet,Other Land And Buildings-Hra,Legal Services
http://statistics.data.gov.uk/search?search=E07000114,Thanet District Council,30/01/2018,447144,1500.00,,Grant Thornton Uk Llp,GRA048,Corporate Resources and S151,Revenue,Services,Financial Services
http://statistics.data.gov.uk/search?search=E07000114,Thanet District Council,30/01/2018,447008,252.80,,Haynes Of Maidstone Ltd,HAY008,Operational Services,Revenue,Direct Transport Costs,Vehicle Management
http://statistics.data.gov.uk/search?search=E07000114,Thanet District Council,30/01/2018,447331,22350.00,,Herrington Consulting Ltd,HER012,Corporate Resources and S151,Balance Sheet,Infrastructure,Consultancy
http://statistics.data.gov.uk/search?search=E07000114,Thanet District Council,30/01/2018,447631,7151.10,,Hfd Construction,HFD001,Corporate Resources and S151,Balance Sheet,Capital Exp-Non Council Assets,Grants
http://statistics.data.gov.uk/search?search=E07000114,Thanet District Council,30/01/2018,446724,179.48,,Hr Go (Kent) Ltd,HRG001,Operational Services,Revenue,Agency Staff,Human Resources
http://statistics.data.gov.uk/search?search=E07000114,Thanet District Council,30/01/2018,446724,358.43,,Hr Go (Kent) Ltd,HRG001,Operational Services,Revenue,Services,Human Resources
http://statistics.data.gov.uk/search?search=E07000114,Thanet District Council,30/01/2018,447123,960.89,,Hr Go (Kent) Ltd,HRG001,Operational Services,Revenue,Agency Staff,Human Resources
http://statistics.data.gov.uk/search?search=E07000114,Thanet District Council,30/01/2018,447124,256.40,,Hr Go (Kent) Ltd,HRG001,Operational Services,Revenue,Agency Staff,Human Resources
http://statistics.data.gov.uk/search?search=E07000114,Thanet District Council,30/01/2018,447124,449.55,,Hr Go (Kent) Ltd,HRG001,Operational Services,Revenue,Services,Human Resources
http://statistics.data.gov.uk/search?search=E07000114,Thanet District Council,30/01/2018,447064,2947.00,,Hydro-Cleansing Ltd,HYD012,Operational Services,Revenue,Cleaning & Domestic Supplies,Building Construction Material
http://statistics.data.gov.uk/search?search=E07000114,Thanet District Council,30/01/2018,446755,600.00,,Hydrosphere Uk Limited,HYD009,Operational Services,Revenue,"Equip, Furniture And Materials",Vehicle Management
http://statistics.data.gov.uk/search?search=E07000114,Thanet District Council,30/01/2018,447334,2265.48,,Iken Business Ltd,IKE001,Corporate Governance,Revenue,Communications & Computing,ICT
http://statistics.data.gov.uk/search?search=E07000114,Thanet District Council,30/01/2018,446701,1000.00,,Jane Lambert,LAM014,Corporate Governance,Revenue,Services,Legal Services
http://statistics.data.gov.uk/search?search=E07000114,Thanet District Council,30/01/2018,447310,2008.49,,Kent County Council,KCC002,Corporate Governance,Revenue,Rents,Various Cats-Public Sector
http://statistics.data.gov.uk/search?search=E07000114,Thanet District Council,30/01/2018,447628,1103.45,,Lifestyle (Kent) Ltd,LIF008,Corporate Resources and S151,Balance Sheet,Capital Exp-Non Council Assets,Grants
http://statistics.data.gov.uk/search?search=E07000114,Thanet District Council,30/01/2018,447633,2700.00,,Local Government Information Unit,LOC005,Chief Executive,Revenue,Grants & Subscriptions,Government Agencies
http://statistics.data.gov.uk/search?search=E07000114,Thanet District Council,30/01/2018,446797,238.00,,Main Man Supplies Ltd,MAI001,Operational Services,Revenue,"Clothes, Uniforms & Laundry",Clothing
http://statistics.data.gov.uk/search?search=E07000114,Thanet District Council,30/01/2018,447629,500.00,,Margate Pride Cic,MAR110,Community Services,Revenue,Grants & Subscriptions,Grants
http://statistics.data.gov.uk/search?search=E07000114,Thanet District Council,30/01/2018,447627,22424.22,,Mark & Christopher Walker,WAL037,Corporate Resources and S151,Balance Sheet,Capital Exp-Non Council Assets,Grants
http://statistics.data.gov.uk/search?search=E07000114,Thanet District Council,30/01/2018,447036,37282.63,,Mears Ltd,MEA003,Corporate Resources and S151,Balance Sheet,Repairs And Mtce Holding A/C,Construction-Repair And Maint
http://statistics.data.gov.uk/search?search=E07000114,Thanet District Council,30/01/2018,447038,2058.48,,Mears Ltd,MEA003,Corporate Resources and S151,Balance Sheet,Repairs And Mtce Holding A/C,Construction-Repair And Maint
http://statistics.data.gov.uk/search?search=E07000114,Thanet District Council,30/01/2018,447039,38729.38,,Mears Ltd,MEA003,Corporate Resources and S151,Balance Sheet,Repairs And Mtce Holding A/C,Construction-Repair And Maint
http://statistics.data.gov.uk/search?search=E07000114,Thanet District Council,30/01/2018,447040,18178.79,,Mears Ltd,MEA003,Corporate Resources and S151,Balance Sheet,Repairs And Mtce Holding A/C,Construction-Repair And Maint
http://statistics.data.gov.uk/search?search=E07000114,Thanet District Council,30/01/2018,447041,863.89,,Mears Ltd,MEA003,Corporate Resources and S151,Balance Sheet,Repairs And Mtce Holding A/C,Construction-Repair And Maint
http://statistics.data.gov.uk/search?search=E07000114,Thanet District Council,30/01/2018,447042,11522.73,,Mears Ltd,MEA003,Corporate Resources and S151,Balance Sheet,Repairs And Mtce Holding A/C,Construction-Repair And Maint
http://statistics.data.gov.uk/search?search=E07000114,Thanet District Council,30/01/2018,447043,23866.47,,Mears Ltd,MEA003,Corporate Resources and S151,Balance Sheet,Repairs And Mtce Holding A/C,Construction-Repair And Maint
http://statistics.data.gov.uk/search?search=E07000114,Thanet District Council,30/01/2018,447044,5209.80,,Mears Ltd,MEA003,Corporate Resources and S151,Balance Sheet,Repairs And Mtce Holding A/C,Construction-Repair And Maint
http://statistics.data.gov.uk/search?search=E07000114,Thanet District Council,30/01/2018,447045,4131.78,,Mears Ltd,MEA003,Corporate Resources and S151,Balance Sheet,Repairs And Mtce Holding A/C,Construction-Repair And Maint
http://statistics.data.gov.uk/search?search=E07000114,Thanet District Council,30/01/2018,447046,11107.91,,Mears Ltd,MEA003,Corporate Resources and S151,Balance Sheet,Repairs And Mtce Holding A/C,Construction-Repair And Maint
http://statistics.data.gov.uk/search?search=E07000114,Thanet District Council,30/01/2018,447047,2789.87,,Mears Ltd,MEA003,Corporate Resources and S151,Balance Sheet,Repairs And Mtce Holding A/C,Construction-Repair And Maint
http://statistics.data.gov.uk/search?search=E07000114,Thanet District Council,30/01/2018,447048,415.95,,Mears Ltd,MEA003,Corporate Resources and S151,Balance Sheet,Repairs And Mtce Holding A/C,Construction-Repair And Maint
http://statistics.data.gov.uk/search?search=E07000114,Thanet District Council,30/01/2018,447049,440.23,,Mears Ltd,MEA003,Corporate Resources and S151,Balance Sheet,Repairs And Mtce Holding A/C,Construction-Repair And Maint
http://statistics.data.gov.uk/search?search=E07000114,Thanet District Council,30/01/2018,447050,2017.00,,Mears Ltd,MEA003,Corporate Resources and S151,Balance Sheet,Repairs And Mtce Holding A/C,Construction-Repair And Maint
http://statistics.data.gov.uk/search?search=E07000114,Thanet District Council,30/01/2018,447051,9644.25,,Mears Ltd,MEA003,Corporate Resources and S151,Balance Sheet,Repairs And Mtce Holding A/C,Construction-Repair And Maint
http://statistics.data.gov.uk/search?search=E07000114,Thanet District Council,30/01/2018,447053,20669.89,,Mears Ltd,MEA003,Corporate Resources and S151,Balance Sheet,Repairs And Mtce Holding A/C,Construction-Repair And Maint
http://statistics.data.gov.uk/search?search=E07000114,Thanet District Council,30/01/2018,447303,319.67,,Mears Ltd,MEA003,Corporate Resources and S151,Balance Sheet,Repairs And Mtce Holding A/C,Construction-Repair And Maint
http://statistics.data.gov.uk/search?search=E07000114,Thanet District Council,30/01/2018,447312,39707.07,,Mears Ltd,MEA003,Corporate Resources and S151,Balance Sheet,Repairs And Mtce Holding A/C,Construction-Repair And Maint
http://statistics.data.gov.uk/search?search=E07000114,Thanet District Council,30/01/2018,447313,3861.20,,Mears Ltd,MEA003,Corporate Resources and S151,Balance Sheet,Repairs And Mtce Holding A/C,Construction-Repair And Maint
http://statistics.data.gov.uk/search?search=E07000114,Thanet District Council,30/01/2018,447315,11697.60,,Mears Ltd,MEA003,Corporate Resources and S151,Balance Sheet,Repairs And Mtce Holding A/C,Construction-Repair And Maint
http://statistics.data.gov.uk/search?search=E07000114,Thanet District Council,30/01/2018,447316,1748.35,,Mears Ltd,MEA003,Corporate Resources and S151,Balance Sheet,Repairs And Mtce Holding A/C,Construction-Repair And Maint
http://statistics.data.gov.uk/search?search=E07000114,Thanet District Council,30/01/2018,447317,3814.01,,Mears Ltd,MEA003,Corporate Resources and S151,Balance Sheet,Repairs And Mtce Holding A/C,Construction-Repair And Maint
http://statistics.data.gov.uk/search?search=E07000114,Thanet District Council,30/01/2018,447318,463.64,,Mears Ltd,MEA003,Corporate Resources and S151,Balance Sheet,Repairs And Mtce Holding A/C,Construction-Repair And Maint
http://statistics.data.gov.uk/search?search=E07000114,Thanet District Council,30/01/2018,446680,694.43,,Ncc Mechanical Services Limited,NCC006,Corporate Governance,Revenue,"Repairs,  Alter & Mtce - Build",Construction-Repair And Maint
http://statistics.data.gov.uk/search?search=E07000114,Thanet District Council,30/01/2018,447081,694.00,,Northrop Sails Ltd,NOR013,Operational Services,Revenue,"Repairs,  Alter & Mtce - Build",Maritime Services
http://statistics.data.gov.uk/search?search=E07000114,Thanet District Council,30/01/2018,446942,1926.32,,Ntm-Gb Limited,NTM001,Operational Services,Revenue,Direct Transport Costs,Vehicle Management
http://statistics.data.gov.uk/search?search=E07000114,Thanet District Council,30/01/2018,447107,695.88,,Ohuk Limited,OHU001,Operational Services,Revenue,Agency Staff,Human Resources
http://statistics.data.gov.uk/search?search=E07000114,Thanet District Council,30/01/2018,447620,780.00,,Prospects Assured Uk Ltd,PRO032,Community Services,Revenue,Grants & Subscriptions,Rent Deposits
http://statistics.data.gov.uk/search?search=E07000114,Thanet District Council,30/01/2018,446798,484.27,,Puls Global Ltd,PUL006,Operational Services,Revenue,"Repairs,  Alter & Mtce - Build",Facilities And Mangement Serv
http://statistics.data.gov.uk/search?search=E07000114,Thanet District Council,30/01/2018,447105,721.50,,R S S (Wessex) Limited,RSS002,Operational Services,Revenue,Agency Staff,Human Resources
http://statistics.data.gov.uk/search?search=E07000114,Thanet District Council,30/01/2018,447622,252.83,,REDACTED PERSONAL DATA,N/A,Community Services,Revenue,Other Transfer Payments,Non Trade Payee
http://statistics.data.gov.uk/search?search=E07000114,Thanet District Council,30/01/2018,447419,685.14,,Scottish Water Business Stream Ltd,SCO019,Corporate Governance,Revenue,Water Services,Utilities
http://statistics.data.gov.uk/search?search=E07000114,Thanet District Council,30/01/2018,447530,1917.00,,Sellick Partnership Ltd,SEL011,Corporate Governance,Revenue,Services,Human Resources
http://statistics.data.gov.uk/search?search=E07000114,Thanet District Council,30/01/2018,447531,3195.00,,Sellick Partnership Ltd,SEL011,Corporate Governance,Revenue,Services,Human Resources
http://statistics.data.gov.uk/search?search=E07000114,Thanet District Council,30/01/2018,447532,2556.00,,Sellick Partnership Ltd,SEL011,Corporate Governance,Revenue,Services,Human Resources
http://statistics.data.gov.uk/search?search=E07000114,Thanet District Council,30/01/2018,445392,681.33,,Southern Electric,SEL007,Operational Services,Revenue,Energy Costs,Utilities
http://statistics.data.gov.uk/search?search=E07000114,Thanet District Council,30/01/2018,447412,-681.33,,Southern Electric,SEL007,Operational Services,Revenue,Energy Costs,Utilities
http://statistics.data.gov.uk/search?search=E07000114,Thanet District Council,30/01/2018,447414,908.14,,Southern Electric,SEL007,Operational Services,Revenue,Energy Costs,Utilities
http://statistics.data.gov.uk/search?search=E07000114,Thanet District Council,30/01/2018,446754,240.00,,Spaldings  Ltd,SPA006,Operational Services,Revenue,"Equip, Furniture And Materials",Horticultural
http://statistics.data.gov.uk/search?search=E07000114,Thanet District Council,30/01/2018,447508,689.00,,Stagecoach Services Limited,STA023,Corporate Resources and S151,Balance Sheet,Staff Bus Permits Holding A/C,Public Transport
http://statistics.data.gov.uk/search?search=E07000114,Thanet District Council,30/01/2018,443665,495.00,,The Coach Tourism Assoc Limited,COA019,Community Services,Revenue,Grants & Subscriptions,Financial Services
http://statistics.data.gov.uk/search?search=E07000114,Thanet District Council,30/01/2018,446954,1334.98,,The Glenwood Hotel,GLE007,Community Services,Revenue,Services,Housing Management
http://statistics.data.gov.uk/search?search=E07000114,Thanet District Council,30/01/2018,446955,3029.13,,The Glenwood Hotel,GLE007,Community Services,Revenue,Services,Housing Management
http://statistics.data.gov.uk/search?search=E07000114,Thanet District Council,30/01/2018,446957,2511.23,,The Glenwood Hotel,GLE007,Community Services,Revenue,Services,Housing Management
http://statistics.data.gov.uk/search?search=E07000114,Thanet District Council,30/01/2018,446958,3274.14,,The Glenwood Hotel,GLE007,Community Services,Revenue,Services,Housing Management
http://statistics.data.gov.uk/search?search=E07000114,Thanet District Council,30/01/2018,446707,7051.98,,Townsends Engineering Ltd,TOW016,Operational Services,Revenue,"Repairs,  Alter & Mtce - Build",Construction-Repair And Maint
http://statistics.data.gov.uk/search?search=E07000114,Thanet District Council,30/01/2018,446890,2511.00,,Townsends Engineering Ltd,TOW016,Operational Services,Revenue,"Equip, Furniture And Materials",Construction-Repair And Maint
http://statistics.data.gov.uk/search?search=E07000114,Thanet District Council,30/01/2018,446891,467.50,,Townsends Engineering Ltd,TOW016,Operational Services,Revenue,"Repairs,  Alter & Mtce - Build",Construction-Repair And Maint
http://statistics.data.gov.uk/search?search=E07000114,Thanet District Council,30/01/2018,446892,1548.00,,Townsends Engineering Ltd,TOW016,Operational Services,Revenue,"Repairs,  Alter & Mtce - Build",Construction-Repair And Maint
http://statistics.data.gov.uk/search?search=E07000114,Thanet District Council,30/01/2018,446893,1460.00,,Townsends Engineering Ltd,TOW016,Operational Services,Revenue,"Repairs,  Alter & Mtce - Build",Construction-Repair And Maint
http://statistics.data.gov.uk/search?search=E07000114,Thanet District Council,30/01/2018,446757,3212.56,,W G Burbridge,BUR016,Operational Services,Revenue,"Repairs,  Alter & Mtce - Build",Building Construction Material
http://statistics.data.gov.uk/search?search=E07000114,Thanet District Council,30/01/2018,447085,5412.79,,Your Leisure Kent Limited,YOU016,Corporate Governance,Revenue,Rents,Arts And Leisure Services
http://statistics.data.gov.uk/search?search=E07000114,Thanet District Council,31/01/2018,446532,672.57,,Abdo Home Improvements Limited,ABD001,Operational Services,Revenue,"Repairs,  Alter & Mtce - Build",Construction-Repair And Maint
http://statistics.data.gov.uk/search?search=E07000114,Thanet District Council,31/01/2018,446730,508.66,,Adecco Uk Ltd,ADE005,Chief Executive,Revenue,Agency Staff,Human Resources
http://statistics.data.gov.uk/search?search=E07000114,Thanet District Council,31/01/2018,447582,650.72,,Adecco Uk Ltd,ADE005,Chief Executive,Revenue,Agency Staff,Human Resources
http://statistics.data.gov.uk/search?search=E07000114,Thanet District Council,31/01/2018,446099,500.62,,Allstar Business Solutions Ltd,ALL038,Operational Services,Revenue,Direct Transport Costs,Vehicle Management
http://statistics.data.gov.uk/search?search=E07000114,Thanet District Council,31/01/2018,446738,17271.31,,Dover District Council,DOV001,East Kent Shared Services,Revenue,Services,Various Cats-Public Sector
http://statistics.data.gov.uk/search?search=E07000114,Thanet District Council,31/01/2018,447180,208.40,,Fuel Oils Kent,FUE001,Operational Services,Revenue,"Equip, Furniture And Materials",Utilities
http://statistics.data.gov.uk/search?search=E07000114,Thanet District Council,31/01/2018,446681,2025.00,,Hartwell Architects,HAR075,Corporate Resources and S151,Balance Sheet,Council Dwellings,Construction-Repair And Maint
http://statistics.data.gov.uk/search?search=E07000114,Thanet District Council,31/01/2018,447297,395.00,,Lobster Van Hire Ltd,LOB001,Corporate Governance,Revenue,Cont Hire & Operating Lease,Vehicle Management
http://statistics.data.gov.uk/search?search=E07000114,Thanet District Council,31/01/2018,447638,638482.00,,Maidstone Borough Council,MAI002,Corporate Resources and S151,Revenue,Revenue Financing,Various Cats-Public Sector
http://statistics.data.gov.uk/search?search=E07000114,Thanet District Council,31/01/2018,447638,250173.00,,Maidstone Borough Council,MAI002,Corporate Resources and S151,Balance Sheet,Collection Fund,Various Cats-Public Sector
http://statistics.data.gov.uk/search?search=E07000114,Thanet District Council,31/01/2018,447741,3090.66,,Nat West Bank,NWE001,Corporate Resources and S151,Revenue,Services,Various Categories
http://statistics.data.gov.uk/search?search=E07000114,Thanet District Council,31/01/2018,447741,620.37,,Nat West Bank,NWE001,East Kent Shared Services,Revenue,Services,Various Categories
http://statistics.data.gov.uk/search?search=E07000114,Thanet District Council,31/01/2018,447796,269.45,,Nat West Bank,NWE001,Corporate Resources and S151,Revenue,Services,Various Categories
http://statistics.data.gov.uk/search?search=E07000114,Thanet District Council,31/01/2018,447514,143369.32,,Public Works Loan Board,PWL001,Corporate Resources and S151,Balance Sheet,Debit Interest And Expenses,Investments And Loans
http://statistics.data.gov.uk/search?search=E07000114,Thanet District Council,31/01/2018,446224,750.00,,R J Broadley Tree Surgery,RJB002,Operational Services,Revenue,Grounds Mtce Costs,Horticultural
http://statistics.data.gov.uk/search?search=E07000114,Thanet District Council,31/01/2018,446225,250.00,,R J Broadley Tree Surgery,RJB002,Operational Services,Revenue,Grounds Mtce Costs,Horticultural
http://statistics.data.gov.uk/search?search=E07000114,Thanet District Council,31/01/2018,446226,920.00,,R J Broadley Tree Surgery,RJB002,Operational Services,Revenue,Grounds Mtce Costs,Horticultural
http://statistics.data.gov.uk/search?search=E07000114,Thanet District Council,31/01/2018,446671,522.00,,Rigby Taylor Ltd,RIG002,Operational Services,Revenue,"Equip, Furniture And Materials",Horticultural
http://statistics.data.gov.uk/search?search=E07000114,Thanet District Council,31/01/2018,447794,732.97,,Santander Uk Plc,SAN017,Corporate Resources and S151,Revenue,Services,Various Categories
http://statistics.data.gov.uk/search?search=E07000114,Thanet District Council,31/01/2018,447800,-115662.00,,Secretary Of State,SEC003,Corporate Resources and S151,Revenue,Revenue Financing,Government Agencies
http://statistics.data.gov.uk/search?search=E07000114,Thanet District Council,31/01/2018,447800,1402811.00,,Secretary Of State,SEC003,Corporate Resources and S151,Balance Sheet,Collection Fund,Government Agencies
http://statistics.data.gov.uk/search?search=E07000114,Thanet District Council,31/01/2018,447298,1000.00,,The Gpm Partnership Limited,GPM001,Corporate Resources and S151,Balance Sheet,Council Dwellings,Consultancy
http://statistics.data.gov.uk/search?search=E07000114,Thanet District Council,31/01/2018,447179,350.00,,The Lotteries Council,LOT002,Corporate Resources and S151,Revenue,Grants & Subscriptions,Financial Services
http://statistics.data.gov.uk/search?search=E07000114,Thanet District Council,31/01/2018,447179,25.00,,The Lotteries Council,LOT002,Corporate Resources and S151,Revenue,Services,Financial Services
http://statistics.data.gov.uk/search?search=E07000114,Thanet District Council,31/01/2018,447743,2981.15,,Worldpay Ltd,WOR008,Corporate Resources and S151,Revenue,Services,Financial Services
http://statistics.data.gov.uk/search?search=E07000114,Thanet District Council,31/01/2018,447745,244.05,,Worldpay Ltd,WOR008,Corporate Resources and S151,Revenue,Services,Financial Services
http://statistics.data.gov.uk/search?search=E07000114,Thanet District Council,31/01/2018,447749,1760.00,,Worldpay Ltd,WOR008,Corporate Resources and S151,Revenue,Services,Financial Services
